Workbook

Sheet fig1b
A2: T(K) | B2: E2g (cm-1)
A3: 90 | B3: 1399.10923 ± 0.09826
A4: 110 | B4: 1399.35814 ± 0.09604
A5: 130 | B5: 1398.92396 ± 0.15038
A6: 150 | B6: 1398.26488 ± 0.04881
A7: 170 | B7: 1400.72591 ± 0.11433
A8: 190 | B8: 1399.7814 ± 0.10631
A9: 210 | B9: 1399.02085 ± 0.08787
A10: 230 | B10: 1398.2214 ± 0.10401
A11: 250 | B11: 1397.18666 ± 0.0963
A12: 273 | B12: 1396.71335 ± 0.0332
A13: 289 | B13: 1395.60672 ± 0.04923

Sheet fig1e
A1: Cross-sectional height profile of the wrinkle
A2: x | B2: height(nm) | C2: x | D2: height(nm)
A3: 0 | B3: 0 | C3: 0 | D3: 0.27307 | E3: -59.72693
A4: 30.00986 | B4: 0 | C4: 1.17156 | D4: 0.27307 | E4: -59.72693
A5: 60.01972 | B5: 0 | C5: 2.34311 | D5: 0.27307 | E5: -59.72693
A6: 90.02958 | B6: 0 | C6: 3.51467 | D6: 0.27307 | E6: -59.72693
A7: 120.03944 | B7: 0 | C7: 4.68622 | D7: 0.27307 | E7: -59.72693
A8: 150.0493 | B8: 0 | C8: 5.85778 | D8: 0.27307 | E8: -59.72693
A9: 180.05916 | B9: 0 | C9: 7.02934 | D9: 0.27307 | E9: -59.72693
A10: 210.06902 | B10: 0.32511 | C10: 8.20089 | D10: 0.27307 | E10: -59.72693
A11: 240.07888 | B11: 0.49122 | C11: 9.37245 | D11: 0.27307 | E11: -59.72693
A12: 270.08874 | B12: 0.69735 | C12: 10.54401 | D12: 0.27307 | E12: -59.72693
A13: 300.0986 | B13: 1.04887 | C13: 11.71556 | D13: 0.27307 | E13: -59.72693
A14: 330.10846 | B14: 1.38383 | C14: 12.88712 | D14: 0.27307 | E14: -59.72693
A15: 360.11832 | B15: 1.90474 | C15: 14.05867 | D15: 0.27307 | E15: -59.72693
A16: 390.12818 | B16: 5.77427 | C16: 15.23023 | D16: 0.27307 | E16: -59.72693
A17: 420.13804 | B17: 15.28686 | C17: 16.40179 | D17: 0.27307 | E17: -59.72693
A18: 450.1479 | B18: 34.21426 | C18: 17.57334 | D18: 0.27307 | E18: -59.72693
A19: 480.15777 | B19: 56.14029 | C19: 18.7449 | D19: 0.27307 | E19: -59.72693
A20: 510.16763 | B20: 79.19647 | C20: 19.91645 | D20: 0.27307 | E20: -59.72693
A21: 540.17749 | B21: 97.10016 | C21: 21.08801 | D21: 0.27307 | E21: -59.72693
A22: 570.18735 | B22: 104.87217 | C22: 22.25957 | D22: 0.27307 | E22: -59.72693
A23: 600.19721 | B23: 102.01233 | C23: 23.43112 | D23: 0.27307 | E23: -59.72693
A24: 630.20707 | B24: 88.58369 | C24: 24.60268 | D24: 0.27307 | E24: -59.72693
A25: 660.21693 | B25: 65.3506 | C25: 25.77424 | D25: 0.27307 | E25: -59.72693
A26: 690.22679 | B26: 41.24874 | C26: 26.94579 | D26: 0.27307 | E26: -59.72693
A27: 720.23665 | B27: 20.00528 | C27: 28.11735 | D27: 0.27307 | E27: -59.72693
A28: 750.24651 | B28: 5.53107 | C28: 29.2889 | D28: 0.27307 | E28: -59.72693
A29: 780.25637 | B29: 0.34693 | C29: 30.46046 | D29: 0.27307 | E29: -59.72693
A30: 810.26623 | B30: -0.75543 | C30: 31.63202 | D30: 0.27307 | E30: -59.72693
A31: 840.27609 | B31: -0.55992 | C31: 32.80357 | D31: 0.27307 | E31: -59.72693
A32: 870.28595 | B32: -0.30526 | C32: 33.97513 | D32: 0.27307 | E32: -59.72693
A33: 900.29581 | B33: -0.15274 | C33: 35.14668 | D33: 0.27307 | E33: -59.72693
A34: 930.30567 | B34: 0 | C34: 36.31824 | D34: 0.27307 | E34: -59.72693
A35: 960.31553 | B35: 0 | C35: 37.4898 | D35: 0.27307 | E35: -59.72693
A36: 990.32539 | B36: 0 | C36: 38.66135 | D36: 0.27307 | E36: -59.72693
A37: 1020.3353 | B37: 0 | C37: 39.83291 | D37: 0.27307 | E37: -59.72693
A38: 1050.3451 | B38: 0 | C38: 41.00447 | D38: 0.27307 | E38: -59.72693
A39: 1080.355 | B39: 0 | C39: 42.17602 | D39: 0.27307 | E39: -59.72693
A40: 1110.3648 | B40: 0 | C40: 43.34758 | D40: 0.27307 | E40: -59.72693
A41: 1140.3747 | B41: 0 | C41: 44.51913 | D41: 0.27307 | E41: -59.72693
A42: 1170.3846 | B42: 0 | C42: 45.69069 | D42: 0.27307 | E42: -59.72693
C43: 46.86225 | D43: 0.27307 | E43: -59.72693
C44: 48.0338 | D44: 0.27307 | E44: -59.72693
C45: 49.20536 | D45: 0.27307 | E45: -59.72693
C46: 50.37691 | D46: 0.27307 | E46: -59.72693
C47: 51.54847 | D47: 0.27307 | E47: -59.72693
C48: 52.72003 | D48: 0.27307 | E48: -59.72693
C49: 53.89158 | D49: 0.27307 | E49: -59.72693
C50: 55.06314 | D50: 0.27307 | E50: -59.72693
C51: 56.2347 | D51: 0.27307 | E51: -59.72693
C52: 57.40625 | D52: 0.27307 | E52: -59.72693
C53: 58.57781 | D53: 0.27307 | E53: -59.72693
C54: 59.74936 | D54: 0.27307 | E54: -59.72693
C55: 60.92092 | D55: 0.27307 | E55: -59.72693
C56: 62.09248 | D56: 0.27307 | E56: -59.72693
C57: 63.26403 | D57: 0.27307 | E57: -59.72693
C58: 64.43559 | D58: 0.27307 | E58: -59.72693
C59: 65.60714 | D59: 0.27307 | E59: -59.72693
C60: 66.7787 | D60: 0.27307 | E60: -59.72693
C61: 67.95026 | D61: 0.27307 | E61: -59.72693
C62: 69.12181 | D62: 0.27307 | E62: -59.72693
C63: 70.29337 | D63: 0.27307 | E63: -59.72693
C64: 71.46493 | D64: 0.27307 | E64: -59.72693
C65: 72.63648 | D65: 0.27307 | E65: -59.72693
C66: 73.80804 | D66: 0.27307 | E66: -59.72693
C67: 74.97959 | D67: 0.27307 | E67: -59.72693
C68: 76.15115 | D68: 0.27307 | E68: -59.72693
C69: 77.32271 | D69: 0.27307 | E69: -59.72693
C70: 78.49426 | D70: 0.27307 | E70: -59.72693
C71: 79.66582 | D71: 0.27307 | E71: -59.72693
C72: 80.83737 | D72: 0.27307 | E72: -59.72693
C73: 82.00893 | D73: 0.27307 | E73: -59.72693
C74: 83.18049 | D74: 0.27307 | E74: -59.72693
C75: 84.35204 | D75: 0.27307 | E75: -59.72693
C76: 85.5236 | D76: 0.27307 | E76: -59.72693
C77: 86.69516 | D77: 0.27307 | E77: -59.72693
C78: 87.86671 | D78: 0.27307 | E78: -59.72693
C79: 89.03827 | D79: 0.27307 | E79: -59.72693
C80: 90.20982 | D80: 0.27307 | E80: -59.72693
C81: 91.38138 | D81: 0.27307 | E81: -59.72693
C82: 92.55294 | D82: 0.27307 | E82: -59.72693
C83: 93.72449 | D83: 0.27307 | E83: -59.72693
C84: 94.89605 | D84: 0.27307 | E84: -59.72693
C85: 96.0676 | D85: 0.27307 | E85: -59.72693
C86: 97.23916 | D86: 0.27307 | E86: -59.72693
C87: 98.41072 | D87: 0.27307 | E87: -59.72693
C88: 99.58227 | D88: 0.27307 | E88: -59.72693
C89: 100.75383 | D89: 0.27307 | E89: -59.72693
C90: 101.92539 | D90: 0.27307 | E90: -59.72693
C91: 103.09694 | D91: 0.27307 | E91: -59.72693
C92: 104.2685 | D92: 0.27307 | E92: -59.72693
C93: 105.44005 | D93: 0.27307 | E93: -59.72693
C94: 106.61161 | D94: 0.27307 | E94: -59.72693
C95: 107.78317 | D95: 0.27307 | E95: -59.72693
C96: 108.95472 | D96: 0.27307 | E96: -59.72693
C97: 110.12628 | D97: 0.27307 | E97: -59.72693
C98: 111.29783 | D98: 0.27307 | E98: -59.72693
C99: 112.46939 | D99: 0.27307 | E99: -59.72693
C100: 113.64095 | D100: 0.27307 | E100: -59.72693
C101: 114.8125 | D101: 0.27307 | E101: -59.72693
C102: 115.98406 | D102: 0.27307 | E102: -59.72693
C103: 117.15562 | D103: 0.27307 | E103: -59.72693
C104: 118.32717 | D104: 0.27307 | E104: -59.72693
C105: 119.49873 | D105: 0.27307 | E105: -59.72693
C106: 120.67028 | D106: 0.27307 | E106: -59.72693
C107: 121.84184 | D107: 0.27307 | E107: -59.72693
C108: 123.0134 | D108: 0.27307 | E108: -59.72693
C109: 124.18495 | D109: 0.27307 | E109: -59.72693
C110: 125.35651 | D110: 0.27307 | E110: -59.72693
C111: 126.52806 | D111: 0.27307 | E111: -59.72693
C112: 127.69962 | D112: 0.27307 | E112: -59.72693
C113: 128.87118 | D113: 0.27307 | E113: -59.72693
C114: 130.04273 | D114: 0.27307 | E114: -59.72693
C115: 131.21429 | D115: 0.27307 | E115: -59.72693
C116: 132.38585 | D116: 0.27307 | E116: -59.72693
C117: 133.5574 | D117: 0.27307 | E117: -59.72693
C118: 134.72896 | D118: 0.27307 | E118: -59.72693
C119: 135.90051 | D119: 0.27307 | E119: -59.72693
C120: 137.07207 | D120: 0.27307 | E120: -59.72693
C121: 138.24363 | D121: 0.27307 | E121: -59.72693
C122: 139.41518 | D122: 0.27307 | E122: -59.72693
C123: 140.58674 | D123: 0.27307 | E123: -59.72693
C124: 141.75829 | D124: 0.27307 | E124: -59.72693
C125: 142.92985 | D125: 0.27307 | E125: -59.72693
C126: 144.10141 | D126: 0.27307 | E126: -59.72693
C127: 145.27296 | D127: 0.27307 | E127: -59.72693
C128: 146.44452 | D128: 0.27307 | E128: -59.72693
C129: 147.61608 | D129: 0.27307 | E129: -59.72693
C130: 148.78763 | D130: 0.27307 | E130: -59.72693
C131: 149.95919 | D131: 0.27307 | E131: -59.72693
C132: 151.13074 | D132: 0.27307 | E132: -59.72693
C133: 152.3023 | D133: 0.27307 | E133: -59.72693
C134: 153.47386 | D134: 0.27307 | E134: -59.72693
C135: 154.64541 | D135: 0.27307 | E135: -59.72693
C136: 155.81697 | D136: 0.27307 | E136: -59.72693
C137: 156.98852 | D137: 0.27307 | E137: -59.72693
C138: 158.16008 | D138: 0.27307 | E138: -59.72693
C139: 159.33164 | D139: 0.27307 | E139: -59.72693
C140: 160.50319 | D140: 0.27307 | E140: -59.72693
C141: 161.67475 | D141: 0.27307 | E141: -59.72693
C142: 162.84631 | D142: 0.27307 | E142: -59.72693
C143: 164.01786 | D143: 0.27307 | E143: -59.72693
C144: 165.18942 | D144: 0.27307 | E144: -59.72693
C145: 166.36097 | D145: 0.27307 | E145: -59.72693
C146: 167.53253 | D146: 0.27307 | E146: -59.72693
C147: 168.70409 | D147: 0.27307 | E147: -59.72693
C148: 169.87564 | D148: 0.27307 | E148: -59.72693
C149: 171.0472 | D149: 0.27307 | E149: -59.72693
C150: 172.21875 | D150: 0.27307 | E150: -59.72693
C151: 173.39031 | D151: 0.27307 | E151: -59.72693
C152: 174.56187 | D152: 0.27307 | E152: -59.72693
C153: 175.73342 | D153: 0.27307 | E153: -59.72693
C154: 176.90498 | D154: 0.27307 | E154: -59.72693
C155: 178.07654 | D155: 0.27307 | E155: -59.72693
C156: 179.24809 | D156: 0.27307 | E156: -59.72693
C157: 180.41965 | D157: 0.27307 | E157: -59.72693
C158: 181.5912 | D158: 0.27307 | E158: -59.72693
C159: 182.76276 | D159: 0.27307 | E159: -59.72693
C160: 183.93432 | D160: 0.27307 | E160: -59.72693
C161: 185.10587 | D161: 0.27307 | E161: -59.72693
C162: 186.27743 | D162: 0.27307 | E162: -59.72693
C163: 187.44898 | D163: 0.27307 | E163: -59.72693
C164: 188.62054 | D164: 0.27307 | E164: -59.72693
C165: 189.7921 | D165: 0.27307 | E165: -59.72693
C166: 190.96365 | D166: 0.27307 | E166: -59.72693
C167: 192.13521 | D167: 0.27307 | E167: -59.72693
C168: 193.30677 | D168: 0.27307 | E168: -59.72693
C169: 194.47832 | D169: 0.27307 | E169: -59.72693
C170: 195.64988 | D170: 0.27307 | E170: -59.72693
C171: 196.82143 | D171: 0.27307 | E171: -59.72693
C172: 197.99299 | D172: 0.27307 | E172: -59.72693
C173: 199.16455 | D173: 0.27307 | E173: -59.72693
C174: 200.3361 | D174: 0.27307 | E174: -59.72693
C175: 201.50766 | D175: 0.27307 | E175: -59.72693
C176: 202.67922 | D176: 0.27307 | E176: -59.72693
C177: 203.85077 | D177: 0.27307 | E177: -59.72693
C178: 205.02233 | D178: 0.27307 | E178: -59.72693
C179: 206.19388 | D179: 0.27307 | E179: -59.72693
C180: 207.36544 | D180: 0.27307 | E180: -59.72693
C181: 208.537 | D181: 0.27307 | E181: -59.72693
C182: 209.70855 | D182: 0.27307 | E182: -59.72693
C183: 210.88011 | D183: 0.27307 | E183: -59.72693
C184: 212.05166 | D184: 0.27307 | E184: -59.72693
C185: 213.22322 | D185: 0.27307 | E185: -59.72693
C186: 214.39478 | D186: 0.27307 | E186: -59.72693
C187: 215.56633 | D187: 0.27307 | E187: -59.72693
C188: 216.73789 | D188: 0.27307 | E188: -59.72693
C189: 217.90945 | D189: 0.27307 | E189: -59.72693
C190: 219.081 | D190: 0.27307 | E190: -59.72693
C191: 220.25256 | D191: 0.27307 | E191: -59.72693
C192: 221.42411 | D192: 0.27307 | E192: -59.72693
C193: 222.59567 | D193: 0.27307 | E193: -59.72693
C194: 223.76723 | D194: 0.27307 | E194: -59.72693
C195: 224.93878 | D195: 0.27307 | E195: -59.72693
C196: 226.11034 | D196: 0.27307 | E196: -59.72693
C197: 227.28189 | D197: 0.27307 | E197: -59.72693
C198: 228.45345 | D198: 0.27307 | E198: -59.72693
C199: 229.62501 | D199: 0.27307 | E199: -59.72693
C200: 230.79656 | D200: 0.27307 | E200: -59.72693
... 802 more rows

Sheet fig2a
A1: x | B1: y | C1: Real(Ez)
A2: =-2.04544600137974-4.73976212614523-157113311797103 -> -157113311797110
A3: -1.998556072 | B3: -4.829966662 | C3: 4.79E+14
A4: -1.945606539 | B4: -4.739226907 | C4: 1.63E+14
A5: -2.089755062 | B5: -4.64976111 | C5: 1.99E+14
A6: -2.138247131 | B6: -4.73902533 | C6: 1.47E+14
A7: -2.091296554 | B7: -4.831721278 | C7: 9.53E+13
A8: -2.05 | B8: -4.91339746 | C8: 3.98E+14
A9: -1.95 | B9: -4.91339746 | C9: 7.34E+14
A10: -2.150140936 | B10: -4.914062646 | C10: 4.70E+14
A11: -2.2 | B11: -5 | C11: 4.59E+13
A12: -2.241161757 | B12: -4.913442425 | C12: 8.29E+13
A13: -2.3 | B13: -5 | C13: 7.18E+13
A14: =-2.09999999999999-5-9557365020815.44 -> -9.557365021e+12
A15: -2 | B15: -5 | C15: 9.18E+13
A16: -1.9 | B16: -5 | C16: 9.73E+13
A17: -2.177814366 | B17: -4.675025412 | C17: 2.59E+14
A18: =-2.19242445247389-4.83675779784469-15266889590387.2 -> -1.526688959e+13
A19: =-2.26717625686572-4.84144976079817-183272523204186 -> -183272523204193
A20: =-2.24132515935102-4.74897388905894-5078680488505.51 -> -5.078680489e+12
A21: -2.254423138 | B21: -4.644931252 | C21: 3.22E+14
A22: -2.332727467 | B22: -4.696988682 | C22: 3.78E+14
A23: -2.345954187 | B23: -4.909367351 | C23: 7.14E+14
A24: -2.4 | B24: -5 | C24: 2.48E+13
A25: =-2.33925630885707-4.79769931758294-207067790549941 -> -207067790549948
A26: -2.436264638 | B26: -4.929019377 | C26: 5.36E+14
A27: -2.5 | B27: -4.900494485 | C27: 2.59E+14
A28: -2.5 | B28: -5 | C28: 1.20E+14
A29: -2.413547342 | B29: -4.651730698 | C29: 7.10E+14
A30: -2.332193993 | B30: -4.599664661 | C30: 5.06E+14
A31: -2.247841592 | B31: -4.549313434 | C31: 1.60E+14
A32: =-2.32709468496496-4.40296691120353-26946452908650.3 -> -26946452908657
A33: -2.327094685 | B33: -4.303461396 | C33: 4.63E+14
A34: -2.413547342 | B34: -4.353214154 | C34: 1.53E+14
A35: =-2.24064202744745-4.45271966860324-365218973929764 -> -365218973929771
A36: -2.240642027 | B36: -4.353214154 | C36: 3.27E+14
A37: =-2.15418936992993-4.40296691120353-135691112991531 -> -135691112991538
A38: =-1.4-5-113001434587414 -> -113001434587420
A39: -1.3 | B39: -5 | C39: 7.49E+13
A40: =-1.35-4.91339745962155-354893623560688 -> -354893623560694
A41: =-1.5-5-45683615550583.9 -> -4.568361555e+13
A42: =-1.45-4.91339745962155-410421098175196 -> -410421098175202
A43: -1.8 | B43: -5 | C43: 1.21E+12
A44: =-1.7-5-42425686369577 -> -4.242568637e+13
A45: -1.75 | B45: -4.91339746 | C45: 1.68E+14
A46: -1.6 | B46: -5 | C46: 9.89E+12
A47: =-1.65-4.91339745962155-58716789190874.1 -> -5.871678919e+13
A48: -1.2 | B48: -5 | C48: 4.83E+13
A49: =-1.24999999999999-4.91339745962155-289283787743688 -> -289283787743694
A50: -1.3 | B50: -4.826794919 | C50: 6.70E+14
A51: -1.7 | B51: -4.826794919 | C51: 4.11E+14
A52: -1.8 | B52: -4.826794919 | C52: 2.04E+14
A53: =-2.16466257790567-4.50017253407262-209640821347888 -> -209640821347895
A54: -2.173251338 | B54: -4.595507292 | C54: 4.36E+14
A55: -2.092786514 | B55: -4.547371831 | C55: 1.98E+14
A56: -1.988465585 | B56: -4.654223873 | C56: 8.56E+13
A57: =-1.89579282194854-4.65407665774917-86380304582028.4 -> -86380304582035
A58: -2.021319311 | B58: -4.583715282 | C58: 6.76E+14
A59: =-1.84999999999999-4.91339745962155-31741347023549.2 -> -31741347023556
A60: -1.9 | B60: -4.826794919 | C60: 1.85E+14
A61: -1.85 | B61: -4.740192379 | C61: 1.60E+14
A62: =-1.79999999999999-4.65358983848622-426137734101413 -> -426137734101419
A63: -1.75 | B63: -4.740192379 | C63: 6.03E+14
A64: =-1.7-4.65358983848622-207216814965008 -> -207216814965014
A65: -1.4 | B65: -4.826794919 | C65: 5.21E+14
A66: -1.35 | B66: -4.740192379 | C66: 7.94E+14
A67: =-2.08050333639529-4.45259075747553-347421442090679 -> -347421442090686
A68: -2.069448692 | B68: -4.354765991 | C68: 3.20E+14
A69: =-1.99244940206263-4.40430798093225-194815546911543 -> -194815546911549
A70: -2.007577261 | B70: -4.503631687 | C70: 3.07E+13
A71: -1.905120905 | B71: -4.465163338 | C71: 1.18E+14
A72: -1.944657899 | B72: -4.573602823 | C72: 5.50E+14
A73: -1.848807765 | B73: -4.565695491 | C73: 4.55E+14
A74: =-1.6-4.65358983848622-531339998029435 -> -531339998029441
A75: -1.65 | B75: -4.566987298 | C75: 2.76E+14
A76: -1.749893233 | B76: -4.566600004 | C76: 2.16E+14
A77: -1.55 | B77: -4.566987298 | C77: 1.05E+14
A78: -1.45 | B78: -4.566987298 | C78: 2.27E+13
A79: -1.5 | B79: -4.480384758 | C79: 9.87E+14
A80: -1.45 | B80: -4.393782217 | C80: 2.45E+14
A81: -1.55 | B81: -4.393782217 | C81: 1.42E+14
A82: -1.798684572 | B82: -4.479086585 | C82: 4.46E+14
A83: -1.828405477 | B83: -4.401511948 | C83: 2.55E+14
A84: =-1.74651140285213-4.39585957073627-73099469368936 -> -7.309946937e+13
A85: -1.699500931 | B85: -4.479731187 | C85: 4.23E+14
A86: -1.646687717 | B86: -4.395030629 | C86: 1.28E+14
A87: -1.6 | B87: -4.480384758 | C87: 7.82E+14
A88: =-1.59885916477525-4.30488384468713-373787564928032 -> -373787564928038
A89: =-1.69502117824625-4.30516031350544-143286548717090 -> -143286548717096
A90: -1.647156089 | B90: -4.210040173 | C90: 6.81E+14
A91: -1.572790149 | B91: -4.146705572 | C91: 5.12E+14
A92: -1.645682081 | B92: -4.101380808 | C92: 8.77E+13
A93: -1.544555207 | B93: -4.22003945 | C93: 4.49E+14
A94: =-2.32709468496496-4.50247242600295-395732085737743 -> -395732085737750
A95: =-2.41354734248248-4.45271966860324-316970390742081 -> -316970390742088
A96: -2.5 | B96: -4.402966911 | C96: 3.37E+14
A97: -2.413547342 | B97: -4.552225183 | C97: 1.17E+14
A98: -2.5 | B98: -4.502472426 | C98: 1.88E+14
A99: -2.5 | B99: -4.601977941 | C99: 4.97E+14
A100: -2.4167098 | B100: -4.749925127 | C100: 1.25E+13
A101: -2.428419452 | B101: -4.846988954 | C101: 1.65E+14
A102: -2.5 | B102: -4.701483456 | C102: 5.27E+13
A103: =-2.5-4.80098897040117-373727471879665 -> -373727471879672
A104: -2.240642027 | B104: -4.253708639 | C104: 2.42E+13
A105: =-2.32709468496496-4.20395588160471-137340469170209 -> -137340469170216
A106: -2.413547342 | B106: -4.253708639 | C106: 2.09E+14
A107: -2.5 | B107: -4.303461396 | C107: 2.83E+14
A108: =-2.41354734248248-4.15420312420501-292359308230279 -> -292359308230286
A109: =-2.5-4.20395588160471-407315013574360 -> -407315013574367
A110: =-2.00080524571066-0.702136486064074-1734911373836400 -> -1734911373836400
A111: =-2.01326730416408-0.715336696194338-1929810223642640 -> -1929810223642640
A112: =-1.99421298389021-0.720425569959623-2541903259685210 -> -2541903259685210
A113: -2.067461643 | B113: -0.6474397637 | C113: 4.98E+14
A114: -2.071482175 | B114: -0.6323933559 | C114: 3.79E+14
A115: -2.083370202 | B115: -0.6441741872 | C115: 3.85E+14
A116: -2.074508545 | B116: -0.661942712 | C116: 3.39E+14
A117: -2.054540005 | B117: -0.6585283926 | C117: 4.79E+14
A118: -2.168179909 | B118: -0.2133611849 | C118: 8.91E+14
A119: -2.16 | B119: -0.2 | C119: 8.57E+14
A120: -2.18 | B120: -0.2 | C120: 3.92E+14
A121: -2.188066617 | B121: -0.2133611755 | C121: 3.58E+14
A122: -2.148238528 | B122: -0.2133545627 | C122: 1.06E+15
A123: -2.14 | B123: -0.2 | C123: 9.96E+14
A124: -2.156411254 | B124: -0.2266883793 | C124: 1.18E+15
A125: -2.136586367 | B125: -0.2266877656 | C125: 1.15E+15
A126: -2.128351997 | B126: -0.2134036579 | C126: 1.09E+15
A127: -1 | B127: -5 | C127: 1.71E+14
A128: -0.95 | B128: -4.91339746 | C128: 7.66E+14
A129: -1.05 | B129: -4.91339746 | C129: 5.80E+14
A130: =-1.15-4.91339745962155-64639032571649.6 -> -6.463903257e+13
A131: -1.1 | B131: -4.826794919 | C131: 1.87E+14
A132: -1.1 | B132: -5 | C132: 1.38E+14
A133: -0.9 | B133: -5 | C133: 2.14E+14
A134: -0.8 | B134: -5 | C134: 2.70E+14
A135: -0.85 | B135: -4.91339746 | C135: 5.89E+14
A136: -0.6 | B136: -5 | C136: 9.24E+13
A137: =-0.549999999999999-4.91339745962155-218465733979815 -> -218465733979820
A138: -0.65 | B138: -4.91339746 | C138: 3.75E+14
A139: -0.6 | B139: -4.826794919 | C139: 4.27E+14
A140: -0.8 | B140: -4.826794919 | C140: 9.08E+12
A141: -0.7 | B141: -4.826794919 | C141: 1.15E+14
A142: =-0.749999999999999-4.74019237886467-65868231456836.3 -> -6.586823146e+13
A143: -0.75 | B143: -4.91339746 | C143: 5.72E+14
A144: -0.7 | B144: -5 | C144: 1.71E+14
A145: -0.65 | B145: -4.740192379 | C145: 1.58E+14
A146: -0.55 | B146: -4.740192379 | C146: 5.55E+14
A147: -0.6 | B147: -4.653589838 | C147: 2.90E+14
A148: 1.30E-15 | B148: -5 | C148: 7.95E+13
A149: 0.1 | B149: -5 | C149: 2.37E+13
A150: 0.05 | B150: -4.91339746 | C150: 2.06E+14
A151: =-0.0999999999999993-4.82679491924311-10969685296651.7 -> -1.09696853e+13
A152: 8.67E-16 | B152: -4.826794919 | C152: 2.77E+14
A153: =-0.0499999999999988-4.74019237886466-164676590175885 -> -164676590175890
A154: =-0.149999999999999-4.74019237886466-233228186556989 -> -233228186556994
A155: 0.05 | B155: -4.740192379 | C155: 4.69E+13
A156: -0.1 | B156: -4.653589838 | C156: 6.12E+14
A157: -0.45 | B157: -4.740192379 | C157: 6.04E+14
A158: -0.35 | B158: -4.740192379 | C158: 5.65E+14
A159: -0.4 | B159: -4.653589838 | C159: 2.81E+14
A160: -0.5 | B160: -4.653589838 | C160: 7.07E+13
A161: -0.55 | B161: -4.566987298 | C161: 3.42E+14
A162: -0.25 | B162: -4.740192379 | C162: 2.00E+14
A163: -0.3 | B163: -4.653589838 | C163: 2.35E+14
A164: -0.2 | B164: -4.653589838 | C164: 5.10E+14
A165: -0.25 | B165: -4.566987298 | C165: 1.49E+14
A166: -0.15 | B166: -4.566987298 | C166: 7.95E+14
A167: 0.2 | B167: -5 | C167: -1.02E+14
A168: 0.3 | B168: -5 | C168: -1.53E+13
A169: 0.25 | B169: -4.91339746 | C169: -5.78E+14
A170: 0.35 | B170: -4.91339746 | C170: -9.04E+13
A171: 0.4 | B171: -5 | C171: 3.20E+13
A172: 0.3 | B172: -4.826794919 | C172: 1.31E+14
A173: 0.4 | B173: -4.826794919 | C173: 1.47E+14
A174: -0.05 | B174: -4.566987298 | C174: 6.63E+14
A175: -0.1 | B175: -4.480384758 | C175: 6.44E+11
A176: 0.35 | B176: -4.740192379 | C176: 3.79E+14
A177: 0.25 | B177: -4.740192379 | C177: 3.83E+14
A178: 0.3 | B178: -4.653589838 | C178: 1.10E+14
A179: 0.4 | B179: -4.653589838 | C179: -3.63E+12
A180: 3.47E-15 | B180: -4.480384758 | C180: 4.70E+13
A181: 0.05 | B181: -4.566987298 | C181: 4.29E+14
A182: 0.15 | B182: -4.566987298 | C182: -3.73E+13
A183: 0.1 | B183: -4.480384758 | C183: 2.95E+14
A184: 0.05 | B184: -4.393782217 | C184: 2.76E+14
A185: 0.15 | B185: -4.393782217 | C185: 5.01E+14
A186: 0.45 | B186: -4.91339746 | C186: 2.58E+14
A187: 0.5 | B187: -4.826794919 | C187: -1.77E+13
A188: 0.55 | B188: -4.91339746 | C188: 2.83E+14
A189: 0.6 | B189: -4.826794919 | C189: -1.47E+14
A190: 0.5 | B190: -5 | C190: 1.54E+13
A191: 0.35 | B191: -4.566987298 | C191: -1.65E+14
A192: 0.25 | B192: -4.566987298 | C192: -7.40E+13
A193: 0.2 | B193: -4.480384758 | C193: 3.27E+14
A194: 0.3 | B194: -4.480384758 | C194: 2.29E+14
A195: 0.45 | B195: -4.740192379 | C195: -1.20E+14
A196: 0.5 | B196: -4.653589838 | C196: -3.55E+12
A197: 0.55 | B197: -4.740192379 | C197: -2.35E+14
A198: 0.65 | B198: -4.740192379 | C198: -7.36E+13
A199: 0.6 | B199: -4.653589838 | C199: 8.14E+13
A200: 0.55 | B200: -4.566987298 | C200: 4.90E+14
... 4300 more rows

Sheet fig2c
A1: x | B1: y | C1: Real(Ez)
A2: =-2.37307110526449-4.85645283678699-6156907085045.55 -> -6.156907085e+12
A3: =-2.5-4.79982749518129-17680676240546.5 -> -1.768067624e+13
A4: =-2.5-5-7405696713955.31 -> -7.405696714e+12
A5: =-2.3-5-8709936872644.28 -> -8.709936873e+12
A6: =-2.36022728499366-4.6886808616686-24664725777258.8 -> -2.466472578e+13
A7: =-2.5-4.59965499036258-21552342892457.4 -> -2.155234289e+13
A8: =-2.33837606995572-4.49604360984436-28349576375364.2 -> -28349576375371
A9: =-2.5-4.39948248554388-30959517246411.1 -> -30959517246418
A10: =-2.19040279860598-4.58452446883828-23083639024958.6 -> -2.308363902e+13
A11: =-2.19727513654324-4.81436186731673-8187635318628.47 -> -8.187635319e+12
A12: =-2.0373363563261-4.67684949845553-18704606971473.5 -> -1.870460697e+13
A13: =-2.09999999999999-5-10168942317440.4 -> -1.016894232e+13
A14: =-1.79979683369408-4.827210082207-6206161461152.76 -> -6.206161461e+12
A15: =-1.9-5-7637689192327.58 -> -7.637689192e+12
A16: =-1.7-5-5443052052462.42 -> -5.443052052e+12
A17: =-1.6-4.82679491924311-6047056641148.9 -> -6.047056641e+12
A18: =-1.5-5-8207537574187.55 -> -8.207537574e+12
A19: =-1.98536965563976-4.82446289535442-6808443970194.01 -> -6.80844397e+12
A20: =-1.88467773509004-4.66848773000875-16279699954902.8 -> -1.627969995e+13
A21: =-1.90747595066305-0.212426253248419-987725600592848 -> -987725600592850
A22: =-1.9-0.2-899040587968058 -> -899040587968060
A23: =-1.92-0.2-1294087997523260 -> -1294087997523260
A24: =-1.92773020160156-0.212954887663708-1215680168575290 -> -1215680168575290
A25: =-1.94-0.2-1533157082834700 -> -1533157082834700
A26: =-1.98391631089171-4.49189642683142-21927579431075 -> -2.192757943e+13
A27: =-2.17279642852466-4.38638703677446-29041623939082.4 -> -29041623939089
A28: =-2.01625180261511-4.28354413464529-30194334182747.2 -> -3.019433418e+13
A29: =-1.85972546271691-4.34357298195011-30992394446075.7 -> -3.099239445e+13
A30: =-1.82-0.2-103541793847945 -> -103541793847947
A31: =-1.81586083279455-0.213567313609807-189444452050392 -> -189444452050394
A32: =-1.8-0.2-158433913111817 -> -158433913111819
A33: =-1.68-0.2-837888786718838 -> -837888786718840
A34: =-1.7-0.2-826212700249534 -> -826212700249536
A35: =-1.68864297113029-0.217339019326475-849200757359507 -> -849200757359509
A36: =-1.66926356179166-0.217508563145602-713397050879680 -> -713397050879682
A37: =-1.66-0.2-772884900898079 -> -772884900898081
A38: =-1.70929545903294-0.216361425062561-916017595928149 -> -916017595928151
A39: =-1.72-0.2-702577436677773 -> -702577436677775
A40: =-1.72560214219986-0.217215865515722-886854111139431 -> -886854111139433
A41: =-1.74-0.2-560627271417633 -> -560627271417635
A42: =-1.7444511352006-0.218167890920813-802713964311919 -> -802713964311921
A43: =-1.76-0.2-488113191898997 -> -488113191898999
A44: =-1.78-0.2-216632899300188 -> -216632899300190
A45: =-1.77075193792343-0.217346087485545-693041795108832 -> -693041795108834
A46: =-1.75812938242713-0.222170255854981-843084645489640 -> -843084645489642
A47: =-1.84934615039739-0.210762604037973-237564421778430 -> -237564421778432
A48: =-1.84-0.2-65586208368110 -> -65586208368112
A49: =-1.86-0.2-208459686934335 -> -208459686934337
A50: =-1.86645330186965-0.213012369412243-255349254421195 -> -255349254421197
A51: =-1.84986062176891-0.22527647864749-9874807639840.71 -> -9.87480764e+12
A52: =-1.88-0.2-424007844417369 -> -424007844417371
A53: =-2.32674272220799-4.29939638276595-34794713456037.2 -> -3.479471346e+13
A54: =-2.16968216559999-4.19312652185711-36809478285259.4 -> -3.680947829e+13
A55: =-2.00686522654811-4.08954768030343-38774586025708.8 -> -3.877458603e+13
A56: =-2.5-4.19931027998802-33855320870309.4 -> -3.385532087e+13
A57: =-2.33809432927036-4.09903224965921-40826076370633 -> -4.082607637e+13
A58: =-2.5-3.99992784675228-41880110144433.8 -> -4.188011014e+13
A59: =-2.33861511165228-3.90047786910256-39329651325645.6 -> -3.932965133e+13
A60: =-2.17273183681634-3.99580149106378-37391586447865.7 -> -3.739158645e+13
A61: =-2.18127348124003-3.80082228029641-35388290495107.3 -> -3.53882905e+13
A62: =-2.24-0.2-2726953707701480 -> -2726953707701480
A63: =-2.23498777154024-0.213496622884033-1610914429882110 -> -1610914429882110
A64: =-2.21999999999999-0.2-1271445614369570 -> -1271445614369570
A65: =-2.21753280338009-0.216490338519873-528249536287462 -> -528249536287464
A66: =-2.2-0.2-50130836279576.9 -> -5.013083628e+13
A67: =-2.23058586900087-0.22575776164769-902388348868312 -> -902388348868314
A68: =-2.3473915238092-0.212548207819574-5399880847831960 -> -5399880847831960
A69: =-2.34-0.2-4482072090904690 -> -4482072090904690
A70: =-2.36-0.2-3276670317756700 -> -3276670317756700
A71: =-2.32711950519448-0.213812016185366-5945013470812810 -> -5945013470812810
A72: =-2.28-0.2-4977164149167490 -> -4977164149167490
A73: =-2.29050552567467-0.21069644844355-5314982372848880 -> -5314982372848880
A74: =-2.27520010098959-0.213146812650214-4347538348678650 -> -4347538348678650
A75: =-2.26-0.2-3994694469732520 -> -3994694469732520
A76: =-2.3-0.2-5444737717836340 -> -5444737717836340
A77: =-2.32-0.2-5255021681899730 -> -5255021681899730
A78: -2.1902876081830835 -0.21700443615213846 5.441176169937876E14
A79: -2.1799999999999997 -0.2 7.104549525702661E14
A80: -2.2033905252639037 -0.2217515501721119 1.5881157228609978E14
A81: -2.454403702988065 -0.21372808750407585 9.63614632894665E14
A82: =-2.45999999999999-0.2-1960883169335120 -> -1960883169335120
A83: -2.471689624284575 -0.21359506301790035 1.360674015818488E15
A84: =-2.44-0.2-1495282907965290 -> -1495282907965290
A85: =-2.46537160304781-0.225906087854523-1174800448166050 -> -1174800448166050
A86: =-2.35618360729014-0.225767742415498-6881822390969840 -> -6881822390969840
A87: =-2.36363921814415-0.212256149126587-4308129527115590 -> -4308129527115590
A88: =-2.38-0.2-2402710693380980 -> -2402710693380980
A89: =-2.33468432621033-0.226385980857651-6633288425531000 -> -6633288425531000
A90: =-2.31410445191376-0.227390689212503-6063817591224900 -> -6063817591224900
A91: =-2.37473122300942-0.222523150596759-5785729381101750 -> -5785729381101750
A92: =-2.39964439292137-0.222303577396346-3739744198900790 -> -3739744198900790
A93: =-2.38779996006742-0.218684669958513-3583789799981760 -> -3583789799981760
A94: =-2.4-0.2-3131208381751320 -> -3131208381751320
A95: =-2.36859809249083-0.240000000000001-7796339752777910 -> -7796339752777910
A96: =-2.39072541783188-0.240000000000001-8277518056827120 -> -8277518056827120
A97: -2.1275343151809762 -0.21265126417852742 1.650685508750675E15
A98: -2.1200000000000006 -0.2 1.2595096982615358E15
A99: -2.14 -0.2 1.1138616758055724E15
A100: -2.107355429146026 -0.21302036760932183 1.4344067314324848E15
A101: -2.1000000000000005 -0.2 1.3588311231946562E15
A102: -2.086918404189912 -0.2134122705723367 1.1821721931904722E15
A103: -2.1145577186858793 -0.2263928510362646 1.4953438229655472E15
A104: -2.1248305521144775 -0.24000000000000146 7.236050937867111E14
A105: -2.1355736615700986 -0.2262026413739921 2.0589611099876738E15
A106: -2.147679223532306 -0.21348774446188454 1.6607468700526618E15
A107: -2.1600000000000006 -0.2 8.410085664642055E14
A108: -2.163826982559363 -0.21764850443772937 1.624738005368701E15
A109: -2.1518283547139836 -0.22588700114182894 2.1649059318076768E15
A110: -2.177498673847961 -0.22168528971518073 1.2870180586902972E15
A111: -2.191284206711055 -0.24000000000000146 1.8311005628799268E15
A112: -2.169120507363495 -0.24000000000000146 1.7804260364216105E15
A113: -2.1802023570372757 -0.25939787048863056 1.4643305242454322E15
A114: -2.158037614269056 -0.25940108150591074 4.99859000993474E14
A115: -2.1469547211746156 -0.24000000000000146 1.4834785712598322E15
A116: =-2.13589263664454-0.259435176791752-392183145730906 -> -392183145730908
A117: =-1.87292017478085-0.227566029697839-236287687424119 -> -236287687424121
A118: =-1.87102893056557-0.259422899114112-875580876233377 -> -875580876233379
A119: =-1.88187510975644-0.240000000000001-289888083960251 -> -289888083960253
A120: =-1.89286221439543-0.259844832007746-884475152638546 -> -884475152638548
A121: -2.0699776919207173 -0.21099132038738913 9.503703913628134E14
A122: -2.0699490820189674 -0.22530692948899503 4.337654695005704E14
A123: -2.0800000000000005 -0.2 1.2513623744285772E15
A124: -2.060000000000001 -0.2 1.0075840891547351E15
A125: =-2.1138295037687-0.259839651646292-187348034867611 -> -187348034867613
A126: -2.1028150215670074 -0.24000000000000146 1.1218066101973045E14
A127: -2.093725615771693 -0.22749503135312868 7.928281974520136E14
A128: =-2.08081834807416-0.240000000000001-200743271878177 -> -200743271878179
A129: -2.0538410578556645 -0.21354491924725158 7.354227766581134E14
A130: -2.040000000000001 -0.2 8.062655714604016E14
A131: -2.020000000000001 -0.2 3.4255233966422744E14
A132: =-2.01733991168796-0.21680982596229-254019311917758 -> -254019311917760
A133: =-2-0.2-376325055269772 -> -376325055269774
A134: -2.0353072505449346 -0.21316668816625906 4.4844167204214156E14
A135: =-2.03095264655411-0.226211749061834-216605356161606 -> -216605356161608
A136: -2.0916789851216726 -0.25947890191942763 6.243856431916701E14
A137: -2.0492619188797327 -0.22652522926360807 1.5254861738590328E14
A138: -2.069859848753318 -0.25963183870455425 1.2205202091140128E15
A139: =-2.05871470755871-0.240000000000001-203163473235997 -> -203163473235999
A140: -2.0476269074392204 -0.2594280874266231 1.4080096004662872E15
A141: =-1.99093816198627-0.217186275589101-966942786897564 -> -966942786897566
A142: =-1.98-0.2-1130784182839290 -> -1130784182839290
A143: =-2.00376100604583-0.221827424180821-733305383020482 -> -733305383020484
A144: =-1.99220154370789-0.240000000000001-112084336918675 -> -112084336918677
A145: =-1.89400194379176-0.226245566021931-602297089240234 -> -602297089240236
A146: =-1.88727627102637-0.213306313409138-556314612989482 -> -556314612989484
A147: =-1.90395484270744-0.240000000000001-369645406345373 -> -369645406345375
A148: =-1.96-0.2-1575861288854360 -> -1575861288854360
A149: =-1.9639101644463-0.217881275378929-1282299137018690 -> -1282299137018690
A150: =-1.97849519606064-0.221942976660277-984975009487378 -> -984975009487380
A151: =-1.94705243228073-0.2130541729577-1503682421051190 -> -1503682421051190
A152: =-1.95215517741592-0.226394924897235-885893306694242 -> -885893306694244
A153: -1.9701655827870745 -0.24000000000000146 4.825758670067475E13
A154: =-1.94816348161264-0.240000000000001-67989057886923.4 -> -6.798905789e+13
A155: =-1.9158428362493-0.226101302714457-698289544886086 -> -698289544886088
A156: =-1.93662940678108-0.226027911229846-856007494827238 -> -856007494827240
A157: =-1.92608521575938-0.240000000000001-272105301257754 -> -272105301257756
A158: =-1.91502002923341-0.259378820264963-1044514340695160 -> -1044514340695160
A159: =-1.90436854394371-0.279300550109573-1188374477094800 -> -1188374477094800
A160: =-1.9366231478771-0.298802619763289-927626206314671 -> -927626206314673
A161: =-1.91524067394686-0.299559435721837-1168707191835010 -> -1168707191835010
A162: =-1.92573696612768-0.279294193192126-1351844913381690 -> -1351844913381690
A163: =-1.93662044482541-0.259548582235005-921048738093635 -> -921048738093637
A164: =-1.3-5-8429573362305.75 -> -8.429573362e+12
A165: =-1.1-5-8424241416905.51 -> -8.424241417e+12
A166: =-1.2-4.82679491924311-7633554894361.17 -> -7.633554894e+12
A167: =-1.77150612992411-4.47622196115896-23512926042061 -> -2.351292604e+13
A168: =-1.85511197696172-4.17184803205576-34159923689743.6 -> -3.415992369e+13
A169: =-1.4-4.82679491924311-8019336931290.64 -> -8.019336931e+12
A170: =-1.49523642402484-4.66017797525434-14685532089014.9 -> -1.468553209e+13
A171: =-1.67937514593605-4.66092371673941-16853728503254.2 -> -1.68537285e+13
A172: =-1.58753725777718-4.47483489976638-16844074538003.1 -> -1.684407454e+13
A173: =-1.3-4.65358983848622-8640722983154.73 -> -8.640722983e+12
A174: -1.3200000000000012 -0.2 2.0795230822896888E14
A175: -1.3100000000000007 -0.2174908408542359 4.255714464045143E14
A176: -1.3000000000000012 -0.2 4.09985694954818E14
A177: =-1.36-0.2-361881660265111 -> -361881660265113
A178: =-1.35-0.217487727049119-125005693857488 -> -125005693857490
A179: =-1.34-0.2-61395425005350.5 -> -61395425005352
A180: =-1.83367826657146-0.213681501444434-218033438441252 -> -218033438441254
A181: -1.8274082433986498 -0.22730228166007757 5.229971517028794E13
A182: =-1.4-0.2-832868982123376 -> -832868982123378
A183: =-1.39-0.217487314039189-639863216017722 -> -639863216017724
A184: =-1.38-0.2-658658978894900 -> -658658978894902
A185: =-1.37-0.217487171790508-418730107873351 -> -418730107873353
A186: -1.2800000000000011 -0.2 5.173785920372763E14
A187: -1.270000000000001 -0.2174962993480968 6.03152719161856E14
A188: -1.260000000000001 -0.2 5.72529172968587E14
A189: -1.2500000000000007 -0.21749974175724535 4.9171518725159175E14
A190: -1.2400000000000013 -0.2 5.2243520497525575E14
A191: -1.2300000000000013 -0.2175035612244809 3.4538237910284294E14
A192: -1.2200000000000013 -0.2 3.442949720904269E14
A193: -1.2100000000000013 -0.21750768516867483 1.0778883831623905E14
A194: -1.2000000000000013 -0.2 1.51107081612457E14
A195: =-1.22047240263386-0.235746275487687-92975084369141.9 -> -9.297508437e+13
A196: =-1.1-0.2-317412485367018 -> -317412485367019
A197: =-1.12-0.2-402546873893221 -> -402546873893222
A198: =-1.10972986215062-0.217703336327983-249194209301509 -> -249194209301510
A199: =-1.20029304004059-0.236169656162438-282156524788049 -> -282156524788050
A200: =-1.16-0.2-226028458780510 -> -226028458780511
... 45682 more rows

Sheet fig2e
A1: x | B1: z | C1: Real(Ex)
A2: 199.9238791 | B2: 0 | C2: -1.881558513
A3: 199.9551023 | B3: -0.4341034379 | C3: -1.860756938
A4: 200 | B4: 0 | C4: -1.881815592
A5: -2435.155244 | B5: -1432.563374 | C5: 0.007724520085
A6: -2500 | B6: -1400.407205 | C6: 0.01428202743
A7: =-2499.99999999999-1499.99999999999-0.0504896291734768 -> -4000.05049
A8: =-2400-1499.99999999999-0.00153102767241228 -> -3900.001531
A9: -2425.701234 | B9: -1349.999375 | C9: 0.01619728881
A10: -2500 | B10: -1300.814409 | C10: 0.02116118027
A11: =-2350.07498670173-1412.41028768046-0.00916469571292688 -> -3762.494439
A12: -2300 | B12: -1500 | C12: 8.88E-04
A13: -2421.583922 | B13: -1251.414117 | C13: 0.002639819663
A14: -2500 | B14: -1201.221614 | C14: 0.008857143763
A15: -2347.273407 | B15: -1302.289959 | C15: 3.56E-04
A16: =-2275.82543789422-1345.47502328182-0.00048585701302421 -> -3621.300947
A17: -2244.690192 | B17: -1419.466188 | C17: 0.009251286816
A18: -2200 | B18: -1500 | C18: 0.001904921521
A19: -2418.371445 | B19: -1152.836732 | C19: 0.007466868426
A20: -2500 | B20: -1101.628819 | C20: 0.03553571008
A21: =-2337.52747850621-1202.55641073155-0.00260942437794658 -> -3540.086499
A22: -2251.609889 | B22: -1253.90581 | C22: 0.003845495566
A23: -2194.158354 | B23: -1339.316459 | C23: 0.006379764174
A24: =-2148.08237327868-1419.59535733117-0.00139868882758734 -> -3567.679129
A25: -2100 | B25: -1500 | C25: 0.002591338803
A26: -2418.232773 | B26: -1052.448848 | C26: 0.01064024033
A27: -2500 | B27: -1002.036024 | C27: 0.02497319107
A28: =-2419.14173718431-952.487110890855-0.0249612170507191 -> -3371.653809
A29: =-2499.99999999999-902.443228409783-0.00424905167050438 -> -3402.447477
A30: =-2419.3381059499-852.968154434159-0.020452317300174 -> -3272.326713
A31: =-2336.12271578759-1102.38580789814-0.00427052322397645 -> -3438.512794
A32: -2252.924759 | B32: -1149.319371 | C32: 0.006105967489
A33: =-2181.613180576-1190.84309628785-0.00394274802328484 -> -3372.46022
A34: =-2150.02142299338-1264.17905367161-0.0168146877308859 -> -3414.217291
A35: =-2098.59120953758-1340.51198047166-0.00756957577058254 -> -3439.11076
A36: -2049.843934 | B36: -1419.738303 | C36: 0.00509638949
A37: -2000 | B37: -1500 | C37: 0.004572641156
A38: -2337.069451 | B38: -1003.140219 | C38: 0.01158544612
A39: -2338.355334 | B39: -903.2986604 | C39: 0.01583428347
A40: -2338.68111 | B40: -803.4966913 | C40: 0.01380472168
A41: -2419.39244 | B41: -753.3548881 | C41: 0.02976935278
A42: =-2338.86192917001-703.899375991789-0.0186397928454574 -> -3042.779945
A43: -2500 | B43: -802.8504331 | C43: 0.05536852319
A44: =-2252.61038828285-1054.01326711286-0.00760378762262153 -> -3306.631259
A45: -2159.509737 | B45: -1102.728722 | C45: 0.007678188981
A46: -2097.343354 | B46: -1183.82774 | C46: 0.001371169125
A47: -2049.530659 | B47: -1260.687706 | C47: 0.01761147191
A48: =-1999.91051367011-1339.55500358445-0.00141771425475014 -> -3339.466935
A49: =-1950.20116450001-1419.5685009441-0.0135138049608311 -> -3369.783179
A50: -1900 | B50: -1500 | C50: 0.005078478631
A51: =-2257.95377774466-954.207675613083-0.0069700364666128 -> -3212.168423
A52: =-2257.94793561759-853.492458873063-0.00999906160403855 -> -3111.450394
A53: =-2258.21057443002-753.975882977821-0.00738571103482437 -> -3012.193843
A54: -2258.519236 | B54: -655.0610751 | C54: 0.0412936715
A55: =-2340.58470124086-605.890969400889-0.0155165120519721 -> -2946.491187
A56: =-2260.57928615103-557.170518540657-0.00783443282415457 -> -2817.757639
A57: -2419.560924 | B57: -653.8772768 | C57: 0.02736056414
A58: -2500 | B58: -703.2576379 | C58: 0.0831014568
A59: -2175.944405 | B59: -1000.428515 | C59: 0.00191711376
A60: -2098.866462 | B60: -1029.398243 | C60: 0.007778843393
A61: =-2052.83510533669-1101.11651642918-0.0122392753182433 -> -3153.963861
A62: -2000.272031 | B62: -1177.349243 | C62: 0.002231405074
A63: =-1950.3869695027-1258.38862652044-0.0117469670623029 -> -3208.787343
A64: -1900.218618 | B64: -1338.894127 | C64: 0.009805717814
A65: -1850.147016 | B65: -1419.331845 | C65: 0.01377529114
A66: -1800 | B66: -1500 | C66: 0.001867857701
A67: -2176.962767 | B67: -901.9399263 | C67: 0.00199004618
A68: -2177.589969 | B68: -803.4673962 | C68: 0.01069135392
A69: =-2177.82303100229-704.474449970923-0.0119937567466706 -> -2882.309475
A70: =-2178.05721527045-605.387797079737-0.0402717377687007 -> -2783.485284
A71: -2178.442177 | B71: -505.492031 | C71: 0.05919188883
A72: -2149.964165 | B72: -318.8175744 | C72: 0.0352719646
A73: =-2218.69771463971-320.647366983317-0.0651871280683968 -> -2539.410269
A74: =-2178.33277885423-399.998608323933-0.0536427760331447 -> -2578.38503
A75: -2173.985917 | B75: -260.0837563 | C75: 0.02911851964
A76: =-2263.7972855224-461.252221361122-0.0238539166845099 -> -2725.073361
A77: -2344.094183 | B77: -510.0582804 | C77: 0.01572880971
A78: -2421.36416 | B78: -556.1465207 | C78: 0.02914623566
A79: -2500 | B79: -603.6648426 | C79: 0.07933822797
A80: -2143.791468 | B80: -204.1309923 | C80: 0.2637428763
A81: =-2211.06592055636-209.068666862572-0.194203468864704 -> -2420.328791
A82: =-2094.98502786232-947.3036505637-0.000457946446376912 -> -3042.289136
A83: =-2013.79402246798-1006.34181654711-0.00534089839009655 -> -3020.14118
A84: -1950.48387 | B84: -1083.803489 | C84: 0.009939872598
A85: -1946.080918 | B85: -1012.021432 | C85: 0.01282406343
A86: =-1901.03027731578-1176.03222616465-0.00998572786900223 -> -3077.072489
A87: -1850.409481 | B87: -1257.9133 | C87: 0.008447192537
A88: =-1800.31633354016-1338.60988568767-0.0177793297759162 -> -3138.943999
A89: =-1750.14690780577-1419.2540227078-0.00207131136557434 -> -3169.403002
A90: -1700 | B90: -1500 | C90: 0.008604420872
A91: -2097.338906 | B91: -852.5817276 | C91: 0.004009042974
A92: =-2097.60980966016-754.086882857093-0.0128694575623081 -> -2851.709562
A93: -2097.082486 | B93: -654.7487139 | C93: 0.04759521855
A94: =-2096.09118805778-555.289348931973-0.0308544357470978 -> -2651.411391
A95: -2091.318354 | B95: -263.9766531 | C95: 0.01985072059
A96: =-2080.63110227254-189.402762762137-0.173866321474323 -> -2270.207731
A97: =-2094.27628528125-454.962049516878-0.0132163912018815 -> -2549.251551
A98: -2089.091191 | B98: -357.8612273 | C98: 0.1166215799
A99: =-2248.83325093651-257.21122077512-0.0853423229653447 -> -2506.129814
A100: =-2240.32393167982-170.834679105637-0.34593426425408 -> -2411.504545
A101: =-2271.52210517048-208.397596138669-0.0728176211252757 -> -2479.992519
A102: -2274.768266 | B102: -375.8691502 | C102: 0.03371208968
A103: -2293.292811 | B103: -299.1849851 | C103: 0.06077723994
A104: -2348.32421 | B104: -418.7331924 | C104: 0.004074906604
A105: -2423.286102 | B105: -460.3128519 | C105: 0.02592928697
A106: -2500 | B106: -504.0720473 | C106: 0.1412362665
A107: =-2229.19171083809-130.2637558042-0.249365280455719 -> -2359.704832
A108: =-2270.07992714022-135.274603558997-0.2568891581081 -> -2405.61142
A109: -2187.399637 | B109: -154.2654855 | C109: 0.1565459506
A110: =-2220.76330401938-99.5650813385055-0.140915501317538 -> -2320.469301
A111: -2198.383675 | B111: -116.2395278 | C111: 0.09914691449
A112: -2119.153981 | B112: -147.8493544 | C112: 0.104663837
A113: =-2069.90033251348-144.444816301318-0.305663860733158 -> -2214.650813
A114: =-2040.86125855551-162.591248306558-0.23194350315856 -> -2203.68445
A115: =-2090.21063832105-116.864622868895-0.247793853377705 -> -2207.323055
A116: =-2028.03441191588-121.635564224408-0.149192226213202 -> -2149.819168
A117: =-2018.76122008663-213.42351218827-0.0990294558527415 -> -2232.283762
A118: -1999.06553 | B118: -156.8153904 | C118: 0.1050459059
A119: -1990.671242 | B119: -124.2856728 | C119: 0.2548923364
A120: =-2018.48729656508-902.489478024373-0.0118928830025369 -> -2920.988667
A121: -1939.239471 | B121: -941.6963401 | C121: 0.01834584958
A122: =-1886.65452489421-1016.52764439729-0.0151107752507882 -> -2903.19728
A123: =-1852.42941097133-1097.09857846364-0.00515307141725771 -> -2949.533143
A124: -1801.372135 | B124: -1177.301457 | C124: 0.007573688929
A125: =-1750.68615304961-1257.86919874712-0.0125872212589722 -> -3008.567939
A126: -1700.357375 | B126: -1338.463783 | C126: 0.01860505516
A127: =-1650.13937019867-1419.1782769204-0.0120678518365446 -> -3069.329715
A128: -1600 | B128: -1500 | C128: 0.004332048974
A129: -2018.340885 | B129: -805.1918231 | C129: 0.01158537769
A130: =-2017.51675893432-704.026816375077-0.0267784682835706 -> -2721.570354
A131: =-2015.51810302829-605.095874015438-0.00008690911847283 -> -2620.614064
A132: -2013.306339 | B132: -505.9547419 | C132: 0.04541695009
A133: =-2002.09641765326-302.725750186262-0.0811818740253699 -> -2304.90335
A134: -1958.562715 | B134: -233.8628464 | C134: 0.1911202224
A135: =-2010.14180679813-406.633356497164-0.0777253324948913 -> -2416.852889
A136: -1918.739008 | B136: -279.7693009 | C136: 0.1259305906
A137: -2297.011306 | B137: -170.8564356 | C137: 0.1557883152
A138: -2307.493577 | B138: -137.833028 | C138: 0.1099643091
A139: -2313.522408 | B139: -243.3236876 | C139: 0.1493930559
A140: -2317.595697 | B140: -199.8574783 | C140: 0.265250357
A141: -2357.748026 | B141: -336.0339438 | C141: 0.001131673131
A142: -2348.772106 | B142: -274.0472175 | C142: 0.001897390298
A143: -2426.2514 | B143: -368.872707 | C143: 0.01152680006
A144: -2500 | B144: -404.4823855 | C144: 0.1432308937
A145: =-2296.75193990595-106.081052739577-0.113693130891845 -> -2402.946686
A146: =-2305.22316983298-80.4240589441608-0.0694045396925121 -> -2385.716633
A147: -2327.277681 | B147: -91.13059532 | C147: 0.2680061473
A148: =-2253.34985649061-100.140603294282-0.329210595131456 -> -2353.81967
A149: =-2232.88380049043-79.9991848889702-0.201758709267488 -> -2313.084744
A150: =-2215.79269980609-75.4450876047707-0.00408388636125309 -> -2291.241871
A151: -2193.077326 | B151: -87.65969699 | C151: 0.2260018647
A152: -2160.947181 | B152: -109.9553484 | C152: 0.3772341742
A153: -2118.309865 | B153: -101.0851505 | C153: 0.0363313699
A154: =-2064.47276374646-110.113550108988-0.360281487035777 -> -2174.946595
A155: =-2087.06476132577-91.7318136675836-0.331106804333526 -> -2179.127682
A156: =-2044.2012504417-93.3961027864667-0.291660882031069 -> -2137.889014
A157: =-2023.44388713869-91.614749649965-0.0506449227359349 -> -2115.109282
A158: -2004.158335 | B158: -101.0261223 | C158: 0.1760552217
A159: =-1908.9776356342-207.66447579562-0.00290840837931299 -> -2116.64502
A160: -1958.570154 | B160: -184.2213794 | C160: 0.2840748961
A161: -1961.60039 | B161: -137.9884869 | C161: 0.3083077509
A162: -1984.347585 | B162: -97.32114109 | C162: 0.3524123436
A163: -1965.528465 | B163: -107.6424707 | C163: 0.3784248635
A164: -1936.423265 | B164: -109.402312 | C164: 0.1922439202
A165: =-1943.16700771266-845.153300612615-0.00675051800110811 -> -2788.327059
A166: -1874.358532 | B166: -871.8805197 | C166: 0.00891439882
A167: =-1838.12080466939-939.11875330541-0.0103511407197877 -> -2777.249909
A168: -1795.869003 | B168: -1018.535299 | C168: 0.02228432018
A169: -1752.790943 | B169: -1097.615946 | C169: 0.00800899132
A170: =-1701.04638532892-1177.38432613001-0.00159685919527392 -> -2878.432308
A171: -1650.557233 | B171: -1257.721488 | C171: 0.01259873009
A172: =-1600.29436178946-1338.33300575415-0.0164675272054108 -> -2938.643835
A173: -1550.109954 | B173: -1419.117655 | C173: 0.01642153766
A174: -1500 | B174: -1500 | C174: 0.005035761421
A175: -1940.31676 | B175: -751.0818859 | C175: 0.01249017185
A176: -1936.238039 | B176: -653.9506568 | C176: 0.01583590426
A177: =-1932.90698557305-556.574596178461-0.0589074350004324 -> -2489.540489
A178: -1930.86259 | B178: -458.7223172 | C178: 0.02277395925
A179: -1928.060628 | B179: -363.5533549 | C179: 0.09210960419
A180: =-1842.03864813117-232.563958164461-0.198120240587819 -> -2074.800727
A181: =-1849.16782399774-323.139801876523-0.116208566381784 -> -2172.423834
A182: =-1815.15288715964-178.204623468273-0.0128805483640296 -> -1993.370391
A183: -1773.008282 | B183: -203.9206768 | C183: 0.2189064101
A184: -1786.709339 | B184: -161.5872511 | C184: 0.2322901014
A185: -1756.089772 | B185: -157.9345852 | C185: 0.2803556414
A186: -2336.754688 | B186: -121.9460081 | C186: 0.354160954
A187: -2353.441195 | B187: -96.06174956 | C187: 0.399744269
A188: -2349.308775 | B188: -74.61558413 | C188: 0.4265045337
A189: -2344.771467 | B189: -161.0293171 | C189: 0.2655601846
A190: =-2369.78133925863-218.398362962998-0.0683574365538108 -> -2588.24806
A191: -2422.899414 | B191: -278.4984504 | C191: 0.002781277764
A192: -2500 | B192: -306.4264612 | C192: 0.2168060201
A193: -2324.048188 | B193: -66.73806272 | C193: 0.1854935753
A194: =-2298.9526106622-63.1276246027756-0.204995057406525 -> -2362.28523
A195: =-2279.0854298594-75.0429593369652-0.37323809878421 -> -2354.501627
A196: =-2251.83741426137-70.2666824234207-0.372807289421028 -> -2322.476904
A197: =-2232.29339230438-61.7630957845026-0.161197183294901 -> -2294.217685
A198: -2216.212568 | B198: -58.51364785 | C198: 0.05950671826
A199: -2201.49542 | B199: -61.83017495 | C199: 0.2005206745
A200: -2183.04814 | B200: -65.86930007 | C200: 0.343791656
... 25210 more rows

Sheet fig2f
A1: h | B1: Re(Neff) | C1: Im(Neff)
A2: nm
A3: 0 | B3: 17.73 | C3: 0.665
A4: 10 | B4: 29.143 | C4: 1.174
A5: 20 | B5: 24.098 | C5: 1.425
A6: 30 | B6: 22.882 | C6: 1.259
A7: 40 | B7: 22.401 | C7: 1.296
A8: 50 | B8: 23.532 | C8: 1.804
A9: 60 | B9: 23.433 | C9: 1.573
A10: 70 | B10: 23.62 | C10: 1.334
A11: 80 | B11: 23.919 | C11: 1.12
A12: 90 | B12: 24.124 | C12: 0.941
A13: 100 | B13: 24.393 | C13: 0.867
A14: 110 | B14: 24.782 | C14: 0.822
A15: 120 | B15: 25.193 | C15: 0.745

Sheet fig4d
A1: x | B1: T-wrinkle (K) | C1: T-calcite (K)
A2: 0 | B2: 90.82825 | C2: 90.00128
A3: 0.01 | B3: 92.15657 | C3: 90.0567
A4: 0.02 | B4: 93.68974 | C4: 90.11851
A5: 0.03 | B5: 95.34615 | C5: 90.18033
A6: 0.04 | B6: 97.00256 | C6: 90.24214
A7: 0.05 | B7: 98.22915 | C7: 90.30008
A8: 0.06 | B8: 99.10178 | C8: 90.35603
A9: 0.07 | B9: 99.97442 | C9: 90.41206
A10: 0.08 | B10: 100.84706 | C10: 90.4681
A11: 0.09 | B11: 101.6883 | C11: 90.52338
A12: 0.1 | B12: 102.34803 | C12: 90.57432
A13: 0.11 | B13: 102.93342 | C13: 90.62348
A14: 0.12 | B14: 103.44449 | C14: 90.67086
A15: 0.13 | B15: 103.88732 | C15: 90.71645
A16: 0.14 | B16: 104.27988 | C16: 90.76027
A17: 0.15 | B17: 104.6124 | C17: 90.80585
A18: 0.16 | B18: 104.88075 | C18: 90.86806
A19: 0.17 | B19: 105.08042 | C19: 90.93378
A20: 0.18 | B20: 105.34205 | C20: 90.99658
A21: 0.19 | B21: 105.72199 | C21: 91.05466
A22: 0.2 | B22: 106.08954 | C22: 91.11195
A23: 0.21 | B23: 106.44471 | C23: 91.16845
A24: 0.22 | B24: 106.78748 | C24: 91.22416
A25: 0.23 | B25: 107.11787 | C25: 91.27909
A26: 0.24 | B26: 107.43587 | C26: 91.33323
A27: 0.25 | B27: 107.74266 | C27: 91.38657
A28: 0.26 | B28: 108.04181 | C28: 91.43914
A29: 0.27 | B29: 108.37048 | C29: 91.48986
A30: 0.28 | B30: 108.71271 | C30: 91.53939
A31: 0.29 | B31: 109.05479 | C31: 91.5878
A32: 0.3 | B32: 109.3984 | C32: 91.63509
A33: 0.31 | B33: 109.74363 | C33: 91.68125
A34: 0.32 | B34: 110.09087 | C34: 91.7263
A35: 0.33 | B35: 110.43999 | C35: 91.77026
A36: 0.34 | B36: 110.79278 | C36: 91.81371
A37: 0.35 | B37: 111.14516 | C37: 91.85625
A38: 0.36 | B38: 111.49712 | C38: 91.89759
A39: 0.37 | B39: 111.84867 | C39: 91.93772
A40: 0.38 | B40: 112.1998 | C40: 91.97665
A41: 0.39 | B41: 112.55051 | C41: 92.01437
A42: 0.4 | B42: 112.9008 | C42: 92.05088
A43: 0.41 | B43: 113.25068 | C43: 92.08619
A44: 0.42 | B44: 113.60015 | C44: 92.12029
A45: 0.43 | B45: 113.94919 | C45: 92.15319
A46: 0.44 | B46: 114.22518 | C46: 92.18499
A47: 0.45 | B47: 114.35334 | C47: 92.2166
A48: 0.46 | B48: 114.48149 | C48: 92.24821
A49: 0.47 | B49: 114.60965 | C49: 92.27983
A50: 0.48 | B50: 114.73781 | C50: 92.31144
A51: 0.49 | B51: 114.86596 | C51: 92.34306
A52: 0.5 | B52: 114.99412 | C52: 92.37467
A53: 0.6 | B53: 116.27568 | C53: 92.6945
A54: 0.7 | B54: 117.55725 | C54: 93.01592
A55: 0.8 | B55: 118.7639 | C55: 93.32943
A56: 0.9 | B56: 119.53709 | C56: 93.59471
A57: 1 | B57: 120.31028 | C57: 93.86059
A58: 1.1 | B58: 121.08765 | C58: 94.1268
A59: 1.2 | B59: 121.56532 | C59: 94.33293
A60: 1.3 | B60: 121.88959 | C60: 94.50863
A61: 1.4 | B61: 122.21386 | C61: 94.68488
A62: 1.5 | B62: 122.53813 | C62: 94.86174
A63: 1.6 | B63: 122.8624 | C63: 95.03868
A64: 1.7 | B64: 123.18667 | C64: 95.21589
A65: 1.8 | B65: 123.51094 | C65: 95.39363
A66: 1.9 | B66: 123.75173 | C66: 95.54482
A67: 2 | B67: 123.9551 | C67: 95.68391
A68: 2.1 | B68: 124.15847 | C68: 95.82316
A69: 2.2 | B69: 124.36186 | C69: 95.96264
A70: 2.3 | B70: 124.56528 | C70: 96.10222
A71: 2.4 | B71: 124.76869 | C71: 96.2418
A72: 2.5 | B72: 124.9721 | C72: 96.38138
A73: 2.6 | B73: 125.1078 | C73: 96.4964
A74: 2.7 | B74: 125.21708 | C74: 96.60212
A75: 2.8 | B75: 125.32636 | C75: 96.70794
A76: 2.9 | B76: 125.43563 | C76: 96.81375
A77: 3 | B77: 125.54491 | C77: 96.91956
A78: 3.1 | B78: 125.65419 | C78: 97.02538
A79: 3.2 | B79: 125.76346 | C79: 97.13119
A80: 3.3 | B80: 125.87274 | C80: 97.237
A81: 3.4 | B81: 125.98202 | C81: 97.34284
A82: 3.5 | B82: 126.0913 | C82: 97.44899
A83: 3.6 | B83: 126.20057 | C83: 97.55526
A84: 3.7 | B84: 126.30985 | C84: 97.66163
A85: 3.8 | B85: 126.41913 | C85: 97.76807
A86: 3.9 | B86: 126.5284 | C86: 97.87451
A87: 4 | B87: 126.59753 | C87: 97.95834
A88: 4.1 | B88: 126.6551 | C88: 98.03571
A89: 4.2 | B89: 126.71268 | C89: 98.1132
A90: 4.3 | B90: 126.77026 | C90: 98.1908
A91: 4.4 | B91: 126.82784 | C91: 98.26839
A92: 4.5 | B92: 126.88542 | C92: 98.34598
A93: 4.6 | B93: 126.943 | C93: 98.42358
A94: 4.7 | B94: 127.00058 | C94: 98.50117
A95: 4.8 | B95: 127.05816 | C95: 98.57877
A96: 4.9 | B96: 127.11574 | C96: 98.65654
A97: 5 | B97: 127.17332 | C97: 98.73436
A98: 6 | B98: 127.74911 | C98: 99.51315
A99: 7 | B99: 128.24969 | C99: 100.2116
A100: 8 | B100: 128.5654 | C100: 100.71116
A101: 9 | B101: 128.88112 | C101: 101.2122
A102: 10 | B102: 129.15723 | C102: 101.63262
A103: 11 | B103: 129.39384 | C103: 101.97222
A104: 12 | B104: 129.63045 | C104: 102.31223
A105: 13 | B105: 129.86706 | C105: 102.65269
A106: 14 | B106: 130.10367 | C106: 102.9932
A107: 15 | B107: 130.34028 | C107: 103.33473
A108: 16 | B108: 130.49965 | C108: 103.52776
A109: 17 | B109: 130.65264 | C109: 103.70848
A110: 18 | B110: 130.80563 | C110: 103.8892
A111: 19 | B111: 130.95862 | C111: 104.06992
A112: 20 | B112: 131.1116 | C112: 104.25064
A113: 21 | B113: 131.26459 | C113: 104.43135
A114: 22 | B114: 131.41758 | C114: 104.61212
A115: 23 | B115: 131.57057 | C115: 104.79316
A116: 24 | B116: 131.72356 | C116: 104.9742
A117: 25 | B117: 131.87655 | C117: 105.15524
A118: 26 | B118: 132.02953 | C118: 105.33628
A119: 27 | B119: 132.15114 | C119: 105.47194
A120: 28 | B120: 132.26335 | C120: 105.594
A121: 29 | B121: 132.37556 | C121: 105.71607
A122: 30 | B122: 132.48778 | C122: 105.83814
A123: 31 | B123: 132.59999 | C123: 105.96021
A124: 32 | B124: 132.7122 | C124: 106.08228
A125: 33 | B125: 132.82441 | C125: 106.20435
A126: 34 | B126: 132.93663 | C126: 106.32641
A127: 35 | B127: 133.04884 | C127: 106.44849
A128: 36 | B128: 133.16105 | C128: 106.57068
A129: 37 | B129: 133.27326 | C129: 106.69288
A130: 38 | B130: 133.36023 | C130: 106.78505
A131: 39 | B131: 133.43144 | C131: 106.85848
A132: 40 | B132: 133.50266 | C132: 106.9319
A133: 41 | B133: 133.57387 | C133: 107.00532
A134: 42 | B134: 133.64508 | C134: 107.07874
A135: 43 | B135: 133.71629 | C135: 107.15216
A136: 44 | B136: 133.7875 | C136: 107.22558
A137: 45 | B137: 133.85871 | C137: 107.299
A138: 46 | B138: 133.92993 | C138: 107.37242
A139: 47 | B139: 134.00114 | C139: 107.44584
A140: 48 | B140: 134.07235 | C140: 107.51927
A141: 49 | B141: 134.14356 | C141: 107.59269
A142: 50 | B142: 134.21477 | C142: 107.66611
A143: 60 | B143: 134.92202 | C143: 108.39477
A144: 70 | B144: 135.47585 | C144: 108.94882
A145: 80 | B145: 136.02968 | C145: 109.50295
A146: 90 | B146: 136.47252 | C146: 109.94363
A147: 100 | B147: 136.88761 | C147: 110.35595
A148: 110 | B148: 137.3027 | C148: 110.76826
A149: 120 | B149: 137.7178 | C149: 111.18058
A150: 130 | B150: 138.11405 | C150: 111.57342
A151: 140 | B151: 138.47347 | C151: 111.92811
A152: 150 | B152: 138.83289 | C152: 112.2828
A153: 160 | B153: 139.19231 | C153: 112.63749
A154: 170 | B154: 139.55173 | C154: 112.99217
A155: 180 | B155: 139.87206 | C155: 113.30811
A156: 190 | B156: 140.1869 | C156: 113.61861
A157: 200 | B157: 140.50174 | C157: 113.92911
A158: 210 | B158: 140.81658 | C158: 114.2396
A159: 220 | B159: 141.13141 | C159: 114.5501
A160: 230 | B160: 141.41121 | C160: 114.82688
A161: 240 | B161: 141.68607 | C161: 115.09902
A162: 250 | B162: 141.96094 | C162: 115.37115
A163: 260 | B163: 142.2358 | C163: 115.64329
A164: 270 | B164: 142.51067 | C164: 115.91543
A165: 280 | B165: 142.75442 | C165: 116.15794
A166: 290 | B166: 142.9938 | C166: 116.39626
A167: 300 | B167: 143.23318 | C167: 116.63458
A168: 310 | B168: 143.47256 | C168: 116.87291
A169: 320 | B169: 143.71195 | C169: 117.11123
A170: 330 | B170: 143.91758 | C170: 117.31913
A171: 340 | B171: 144.10619 | C171: 117.51167
A172: 350 | B172: 144.2817 | C172: 117.69239
A173: 360 | B173: 144.44411 | C173: 117.86131
A174: 370 | B174: 144.59343 | C174: 118.01842
A175: 380 | B175: 144.71925 | C175: 118.15432
A176: 390 | B176: 144.82674 | C176: 118.27367
A177: 400 | B177: 144.9171 | C177: 118.37756
A178: 410 | B178: 144.99033 | C178: 118.466
A179: 420 | B179: 145.04644 | C179: 118.53898
A180: 430 | B180: 145.079 | C180: 118.59117
A181: 440 | B181: 145.09119 | C181: 118.6252
A182: 450 | B182: 145.08376 | C182: 118.64188
A183: 460 | B183: 145.05672 | C183: 118.64111
A184: 470 | B184: 145.01006 | C184: 118.62282
A185: 480 | B185: 144.94321 | C185: 118.58506
A186: 490 | B186: 144.85646 | C186: 118.5288
A187: 500 | B187: 144.74988 | C187: 118.45445

Sheet SI-fig1
A1: cell parameter
A2: Temperature | B2: a | C2: sigma | D2: c | E2: sigma | F2: v | G2: sigma
A3: K
A4: 100 | B4: 4.99311 | C4: 1.9E-5 | D4: 17.0111 | E4: 5E-5 | F4: 367.286 | G4: 0.002
A5: 130 | B5: 4.99257 | C5: 1.7E-5 | D5: 17.0195 | E5: 4.5E-5 | F5: 367.389 | G5: 0.002
A6: 160 | B6: 4.99175 | C6: 1.9E-5 | D6: 17.0283 | E6: 5.1E-5 | F6: 367.457 | G6: 0.003
A7: 190 | B7: 4.99171 | C7: 1.9E-5 | D7: 17.0375 | E7: 5.2E-5 | F7: 367.651 | G7: 0.003
A8: 220 | B8: 4.9914 | C8: 1.9E-5 | D8: 17.047 | E8: 5E-5 | F8: 367.81 | G8: 0.003
A9: 250 | B9: 4.9908 | C9: 1.9E-5 | D9: 17.0542 | E9: 5.2E-5 | F9: 367.876 | G9: 0.003
A10: 280 | B10: 4.9904 | C10: 1.9E-5 | D10: 17.0616 | E10: 5.1E-5 | F10: 367.976 | G10: 0.003
A11: 310 | B11: 4.99009 | C11: 1.9E-5 | D11: 17.0692 | E11: 5.1E-5 | F11: 368.096 | G11: 0.003
A12: 340 | B12: 4.9902 | C12: 1.9E-5 | D12: 17.0776 | E12: 5.1E-5 | F12: 368.293 | G12: 0.003
A13: 370 | B13: 4.98957 | C13: 1.9E-5 | D13: 17.0838 | E13: 5.1E-5 | F13: 368.335 | G13: 0.003
A14: 400 | B14: 4.98932 | C14: 1.9E-5 | D14: 17.0908 | E14: 5.1E-5 | F14: 368.447 | G14: 0.003

Sheet SI-fig3
A1: Temperature | B1: Width | C1: Height | D1: Radius
A2: K | B2: nm | C2: nm | D2: nm
A3: 50 | B3: 396.77548 | C3: 27.64608 | D3: 288.48709
A4: 100 | B4: 412.94947 | C4: 23.45297 | D4: 368.35478
A5: 150 | B5: 426.56805 | C5: 16.04713 | D5: 574.4464
A6: 200 | B6: 388.41396 | C6: 5.21867 | D6: 1464.53614

Sheet SI-fig4b
A1: cycle | C1: W | D1: H
A2: 1 | B2: 1 | C2: 1020 | D2: 75
A3: 1 | B3: 2 | C3: 0 | D3: 0
A4: 1 | B4: 3 | C4: 1080 | D4: 80
A6: 2 | B6: 4 | C6: 1480 | D6: 137
A7: 2 | B7: 5 | C7: 0 | D7: 0
A8: 2 | B8: 6 | C8: 1680 | D8: 114
A10: 3 | B10: 8 | C10: 1220 | D10: 128
A12: 4 | B12: 10 | C12: 1820 | D12: 144

Sheet SI-fig5a
A1: x | B1: y | C1: Real(Ez)
A2: -2.428412517 | B2: -4.846988957 | C2: 7.13E+13
A3: -2.5 | B3: -4.900494485 | C3: 5.24E+14
A4: -2.345954112 | B4: -4.909367581 | C4: 6.76E+14
A5: -2.3 | B5: -5 | C5: 3.49E+14
A6: -2.4 | B6: -5 | C6: 3.00E+14
A7: -2.5 | B7: -5 | C7: 3.49E+14
A8: =-2.26668538489571-4.84134779611374-31496002221320.1 -> -3.149600222e+13
A9: =-2.3392563130809-4.7976993012953-290353605343379 -> -290353605343386
A10: =-2.24132951887977-4.74897269867031-461599739214768 -> -461599739214775
A11: -2.177825859 | B11: -4.675025353 | C11: 3.12E+14
A12: -2.254427105 | B12: -4.644907881 | C12: 6.40E+14
A13: -2.173238721 | B13: -4.595508527 | C13: 5.03E+14
A14: -2.089755064 | B14: -4.649761176 | C14: 7.27E+14
A15: -2.021319311 | B15: -4.583715455 | C15: 5.18E+14
A16: -1.988465702 | B16: -4.654223888 | C16: 7.16E+14
A17: =-2.09278589713187-4.5473698781548-14824824467180.8 -> -1.482482447e+13
A18: =-2.13825530193728-4.73902292687772-252464359549551 -> -252464359549558
A19: =-2.19244447737281-4.83634240098446-234882679549478 -> -234882679549485
A20: =-2.09140305290499-4.83172576245308-79502854428158 -> -7.950285443e+13
A21: -2.240734823 | B21: -4.913168647 | C21: 5.09E+14
A22: -2.2 | B22: -5 | C22: 1.04E+14
A23: -1.95 | B23: -4.91339746 | C23: 7.01E+14
A24: -1.85 | B24: -4.91339746 | C24: 4.33E+14
A25: =-1.9-4.82679491924311-154557407919405 -> -154557407919412
A26: -1.8 | B26: -4.826794919 | C26: 4.97E+13
A27: -1.8 | B27: -5 | C27: 1.75E+14
A28: -1.75 | B28: -4.91339746 | C28: 5.48E+14
A29: -1.7 | B29: -4.826794919 | C29: 1.13E+14
A30: -1.65 | B30: -4.91339746 | C30: 3.76E+14
A31: -1.6 | B31: -4.826794919 | C31: 6.24E+13
A32: -1.7 | B32: -5 | C32: 1.28E+14
A33: -1.6 | B33: -5 | C33: 9.78E+13
A34: =-1.85-4.74019237886466-371519846827951 -> -371519846827958
A35: =-1.75-4.74019237886466-93268623812135.9 -> -9.326862381e+13
A36: -1.8 | B36: -4.653589838 | C36: 4.79E+14
A37: -1.896019719 | B37: -4.653842714 | C37: 7.32E+14
A38: -1.55 | B38: -4.91339746 | C38: 1.45E+14
A39: -1.5 | B39: -4.826794919 | C39: 1.84E+14
A40: =-1.3-5-40289699188018.1 -> -4.028969919e+13
A41: =-1.2-5-19008664564847.4 -> -1.900866456e+13
A42: =-1.24999999999999-4.91339745962155-483499096865620 -> -483499096865626
A43: =-1.35-4.91339745962155-217067829111544 -> -217067829111550
A44: =-1.45-4.91339745962155-60210348158937.3 -> -6.021034816e+13
A45: -1.4 | B45: -4.826794919 | C45: 3.65E+14
A46: -1.4 | B46: -5 | C46: 2.60E+13
A47: -1.5 | B47: -5 | C47: 5.58E+13
A48: =-1.15-4.91339745962155-268140114792205 -> -268140114792211
A49: -1.944658923 | B49: -4.573605949 | C49: 5.33E+14
A50: =-1.65-4.74019237886466-21169787387609.1 -> -2.116978739e+13
A51: -1.55 | B51: -4.740192379 | C51: 1.49E+14
A52: -1.6 | B52: -4.653589838 | C52: 3.23E+14
A53: -1.3 | B53: -4.826794919 | C53: 2.89E+14
A54: -1.35 | B54: -4.740192379 | C54: 6.19E+14
A55: -1.2 | B55: -4.826794919 | C55: 3.68E+14
A56: -1.1 | B56: -4.826794919 | C56: 3.12E+14
A57: -1 | B57: -4.826794919 | C57: 3.29E+14
A58: -1.05 | B58: -4.740192379 | C58: 5.61E+14
A59: -0.95 | B59: -4.740192379 | C59: 3.06E+14
A60: -1.15 | B60: -4.740192379 | C60: 6.52E+14
A61: -1.25 | B61: -4.740192379 | C61: 6.79E+14
A62: =-1.2-4.65358983848622-212255460728924 -> -212255460728930
A63: -1.45 | B63: -4.740192379 | C63: 2.67E+14
A64: -1.5 | B64: -4.653589838 | C64: 1.14E+14
A65: =-1.4-4.65358983848622-192118900389942 -> -192118900389948
A66: -1.45 | B66: -4.566987298 | C66: 2.57E+14
A67: =-1.3-4.65358983848622-194541178493755 -> -194541178493761
A68: -1.1 | B68: -5 | C68: 1.76E+13
A69: -1 | B69: -5 | C69: 1.30E+14
A70: =-1.05-4.91339745962155-139000292013627 -> -139000292013633
A71: -0.95 | B71: -4.91339746 | C71: 4.84E+11
A72: =-0.899999999999999-4.82679491924311-13241698977686 -> -1.324169898e+13
A73: -0.85 | B73: -4.91339746 | C73: 3.48E+14
A74: =-0.799999999999999-4.82679491924311-2954315511498.31 -> -2.954315512e+12
A75: -0.75 | B75: -4.91339746 | C75: 6.62E+14
A76: -0.7 | B76: -5 | C76: 1.97E+14
A77: -0.65 | B77: -4.91339746 | C77: 6.57E+14
A78: -0.8 | B78: -5 | C78: 2.24E+14
A79: -0.9 | B79: -5 | C79: 1.39E+14
A80: =-2.1646591821718-4.50016443172296-335149115699120 -> -335149115699127
A81: =-2.24784731419733-4.5493147649342-16287077486950.5 -> -1.628707749e+13
A82: =-2.24064202744745-4.45271966860324-494863119983683 -> -494863119983690
A83: -2.332335555 | B83: -4.599501258 | C83: 6.77E+14
A84: =-2.32709468496496-4.50247242600294-466821374558620 -> -466821374558627
A85: -2.332765852 | B85: -4.696988314 | C85: 2.17E+14
A86: -2.413547342 | B86: -4.651730698 | C86: 6.62E+14
A87: =-2.41671119203831-4.7499248598919-391872153548205 -> -391872153548212
A88: -2.5 | B88: -4.701483456 | C88: 1.34E+14
A89: =-2.5-4.80098897040118-418506725030323 -> -418506725030330
A90: -2.5 | B90: -4.402966911 | C90: 1.55E+14
A91: -2.413547342 | B91: -4.353214154 | C91: 6.60E+14
A92: -2.5 | B92: -4.303461396 | C92: 5.84E+14
A93: =-2.41354734248248-4.45271966860324-354841716632117 -> -354841716632124
A94: -2.413547342 | B94: -4.552225183 | C94: 1.93E+14
A95: -2.5 | B95: -4.601977941 | C95: 6.43E+14
A96: =-2.5-4.50247242600294-343194994747856 -> -343194994747863
A97: =-2.32709468496496-4.40296691120353-112637645037823 -> -112637645037830
A98: -2.327094685 | B98: -4.303461396 | C98: 4.48E+14
A99: =-2.24064202744744-4.25370863900442-88216890636699.7 -> -8.821689064e+13
A100: =-2.32709468496496-4.20395588160471-532150915644279 -> -532150915644285
A101: =-2.24064202744745-4.15420312420501-570057084306101 -> -570057084306107
A102: -2.327094685 | B102: -4.104450367 | C102: 2.34E+12
A103: -2.5 | B103: -4.104450367 | C103: 3.74E+13
A104: -2.413547342 | B104: -4.054697609 | C104: 3.02E+14
A105: -2.5 | B105: -4.004944852 | C105: 4.13E+14
A106: -0.6 | B106: -5 | C106: 1.58E+14
A107: -0.55 | B107: -4.91339746 | C107: 2.01E+14
A108: -0.5 | B108: -5 | C108: 6.34E+13
A109: -0.4 | B109: -5 | C109: 6.77E+13
A110: =-0.449999999999999-4.91339745962155-28067914740805.5 -> -2.806791474e+13
A111: -0.5 | B111: -4.826794919 | C111: 4.77E+13
A112: -0.6 | B112: -4.826794919 | C112: 1.44E+14
A113: -0.55 | B113: -4.740192379 | C113: 4.29E+13
A114: -0.45 | B114: -4.740192379 | C114: 4.59E+14
A115: -0.35 | B115: -4.740192379 | C115: 6.17E+14
A116: =-0.399999999999998-4.65358983848622-180889683014254 -> -180889683014259
A117: -1.25 | B117: -4.566987298 | C117: 8.79E+13
A118: -1 | B118: -4.653589838 | C118: 1.17E+14
A119: -0.95 | B119: -4.566987298 | C119: 1.75E+14
A120: =-1.05-4.56698729810777-85738248662873.8 -> -8.573824866e+13
A121: =-0.849999999999999-4.74019237886466-100274387337421 -> -100274387337427
A122: -0.9 | B122: -4.653589838 | C122: 4.85E+14
A123: -2.240642027 | B123: -4.054697609 | C123: 4.97E+14
A124: =-2.15418936992993-4.1044503668053-171060238385212 -> -171060238385218
A125: -2.15418937 | B125: -4.004944852 | C125: 5.47E+14
A126: =-2.06773671241241-4.154203124205-508753272695852 -> -508753272695858
A127: -2.067736712 | B127: -4.054697609 | C127: 3.42E+14
A128: =-2.06773671241241-3.85568657980677-745215592986432 -> -745215592986438
A129: -2.067736712 | B129: -3.756181065 | C129: 3.58E+14
A130: -2.15418937 | B130: -3.805933822 | C130: 2.59E+14
A131: =-2.06773671241241-3.95519209460619-197131928600787 -> -197131928600793
A132: -1.848808751 | B132: -4.565697176 | C132: 3.92E+14
A133: -1.7 | B133: -4.653589838 | C133: 3.52E+14
A134: -1.749892294 | B134: -4.566610825 | C134: 2.62E+14
A135: =-1.79868690554491-4.47908667358652-90631240862545.6 -> -9.063124086e+13
A136: -1.699536272 | B136: -4.479730908 | C136: 5.78E+13
A137: -1.65 | B137: -4.566987298 | C137: 2.66E+14
A138: -1.695023363 | B138: -4.30515019 | C138: 4.06E+14
A139: -1.646712291 | B139: -4.395043284 | C139: 7.80E+13
A140: -1.598872137 | B140: -4.30487117 | C140: 2.39E+14
A141: -1.55 | B141: -4.566987298 | C141: 3.18E+14
A142: -1.6 | B142: -4.480384758 | C142: 2.31E+14
A143: =-1.55-4.39378221735089-27098925022252.8 -> -2.709892502e+13
A144: -1.981284055 | B144: -4.104450367 | C144: 1.01E+14
A145: -1.981284055 | B145: -4.004944852 | C145: 6.39E+14
A146: =-1.89762522860375-4.15410822498488-509042083748121 -> -509042083748127
A147: -1.894831397 | B147: -4.054697609 | C147: 4.14E+14
A148: -1.894831397 | B148: -3.955192095 | C148: 1.06E+14
A149: -1.80837874 | B149: -4.004944852 | C149: 4.06E+14
A150: =-1.80837873985986-3.90543933720648-121164227096395 -> -121164227096401
A151: =-1.81186966566691-4.10267129428987-247024579692714 -> -247024579692720
A152: -1.725315189 | B152: -4.052823006 | C152: 8.44E+13
A153: -1.721926082 | B153: -3.955192095 | C153: 1.44E+14
A154: -1.35 | B154: -4.220577137 | C154: 4.31E+14
A155: -1.394402168 | B155: -4.136946191 | C155: 3.14E+14
A156: -1.449714525 | B156: -4.220604303 | C156: 5.48E+14
A157: -0.85 | B157: -4.566987298 | C157: 6.89E+14
A158: -0.8 | B158: -4.653589838 | C158: 5.16E+14
A159: -0.6 | B159: -4.653589838 | C159: 4.70E+14
A160: -0.55 | B160: -4.566987298 | C160: 6.17E+14
A161: -0.65 | B161: -4.566987298 | C161: 6.74E+14
A162: -0.7 | B162: -4.826794919 | C162: 1.93E+14
A163: =-0.649999999999999-4.74019237886466-16215220193273.4 -> -1.621522019e+13
A164: =-0.749999999999999-4.74019237886466-239773837845733 -> -239773837845738
A165: -0.7 | B165: -4.653589838 | C165: 5.04E+14
A166: -2.240642027 | B166: -4.353214154 | C166: 6.54E+14
A167: -2.15418937 | B167: -4.303461396 | C167: 4.48E+14
A168: =-2.15418936992993-4.20395588160471-786028285543490 -> -786028285543496
A169: -2.067736712 | B169: -4.253708639 | C169: 4.30E+14
A170: =-2.15418936992993-4.40296691120353-76794438906546.6 -> -7.679443891e+13
A171: =-2.08050180820245-4.45259140761613-535600573421153 -> -535600573421160
A172: -2.069448103 | B172: -4.354766136 | C172: 6.86E+14
A173: =-2.0075769274069-4.50363172829273-381898677603809 -> -381898677603815
A174: =-1.81441462875547-4.20140912802738-295883122449045 -> -295883122449051
A175: -1.738740093 | B175: -4.232532934 | C175: 2.21E+14
A176: -1.80336922 | B176: -4.306465484 | C176: 6.29E+14
A177: =-1.90511721461628-4.46516615309405-363618097165341 -> -363618097165347
A178: =-1.99246210997293-4.40430640243928-101259261811132 -> -101259261811138
A179: -1.903237322 | B179: -4.353949419 | C179: 4.33E+14
A180: =-1.82840547484521-4.40152806096565-51824539956192.1 -> -5.182453996e+13
A181: =-1.74651145286149-4.39587600833801-29469699045279.4 -> -2.946969905e+13
A182: -1.983003139 | B182: -4.304040091 | C182: 8.46E+14
A183: =-1.98128405489489-4.20395588160471-306776969086767 -> -306776969086773
A184: -1.895328303 | B184: -4.252753313 | C184: 1.13E+14
A185: =-1.94568424678648-4.73922678886792-260140432508086 -> -260140432508093
A186: =-2.04544600453189-4.73976223774889-290838996762959 -> -290838996762966
A187: -1.998565945 | B187: -4.829872746 | C187: 1.09E+14
A188: -2.05 | B188: -4.91339746 | C188: 6.09E+14
A189: -2.150049265 | B189: -4.914073368 | C189: 7.46E+14
A190: -2.1 | B190: -5 | C190: 1.81E+14
A191: -2 | B191: -5 | C191: 3.34E+14
A192: -1.9 | B192: -5 | C192: 2.85E+14
A193: =-1.19999999999999-4.30717967697245-393406835312478 -> -393406835312483
A194: -1.15 | B194: -4.220577137 | C194: 2.00E+14
A195: -1.25 | B195: -4.220577137 | C195: 3.30E+14
A196: -1.1 | B196: -4.653589838 | C196: 2.00E+13
A197: -1.15 | B197: -4.566987298 | C197: 4.04E+11
A198: -1.2 | B198: -4.480384758 | C198: 9.24E+14
A199: -1.15 | B199: -4.393782217 | C199: 4.35E+14
A200: -1.25 | B200: -4.393782217 | C200: 4.16E+14
... 4300 more rows

Sheet SI-fig5c
A1: x | B1: y | C1: Real(Ez)
A2: -1.998556072 | B2: -4.829966662 | C2: 4.79E+14
A3: -1.945606539 | B3: -4.739226907 | C3: 1.63E+14
A4: -2.089755062 | B4: -4.64976111 | C4: 1.99E+14
A5: -2.138247131 | B5: -4.73902533 | C5: 1.47E+14
A6: -2.091296554 | B6: -4.831721278 | C6: 9.53E+13
A7: -2.05 | B7: -4.91339746 | C7: 3.98E+14
A8: -1.95 | B8: -4.91339746 | C8: 7.34E+14
A9: -2.150140936 | B9: -4.914062646 | C9: 4.70E+14
A10: -2.2 | B10: -5 | C10: 4.59E+13
A11: -2.241161757 | B11: -4.913442425 | C11: 8.29E+13
A12: -2.3 | B12: -5 | C12: 7.18E+13
A13: =-2.09999999999999-5-9557365020815.44 -> -9.557365021e+12
A14: -2 | B14: -5 | C14: 9.18E+13
A15: -1.9 | B15: -5 | C15: 9.73E+13
A16: -2.177814366 | B16: -4.675025412 | C16: 2.59E+14
A17: =-2.19242445247389-4.83675779784469-15266889590387.2 -> -1.526688959e+13
A18: =-2.26717625686572-4.84144976079817-183272523204186 -> -183272523204193
A19: =-2.24132515935102-4.74897388905894-5078680488505.51 -> -5.078680489e+12
A20: -2.254423138 | B20: -4.644931252 | C20: 3.22E+14
A21: -2.332727467 | B21: -4.696988682 | C21: 3.78E+14
A22: -2.345954187 | B22: -4.909367351 | C22: 7.14E+14
A23: -2.4 | B23: -5 | C23: 2.48E+13
A24: =-2.33925630885707-4.79769931758294-207067790549941 -> -207067790549948
A25: -2.436264638 | B25: -4.929019377 | C25: 5.36E+14
A26: -2.5 | B26: -4.900494485 | C26: 2.59E+14
A27: -2.5 | B27: -5 | C27: 1.20E+14
A28: -2.413547342 | B28: -4.651730698 | C28: 7.10E+14
A29: -2.332193993 | B29: -4.599664661 | C29: 5.06E+14
A30: -2.247841592 | B30: -4.549313434 | C30: 1.60E+14
A31: =-2.32709468496496-4.40296691120353-26946452908650.3 -> -26946452908657
A32: -2.327094685 | B32: -4.303461396 | C32: 4.63E+14
A33: -2.413547342 | B33: -4.353214154 | C33: 1.53E+14
A34: =-2.24064202744745-4.45271966860324-365218973929764 -> -365218973929771
A35: -2.240642027 | B35: -4.353214154 | C35: 3.27E+14
A36: =-2.15418936992993-4.40296691120353-135691112991531 -> -135691112991538
A37: =-1.4-5-113001434587414 -> -113001434587420
A38: -1.3 | B38: -5 | C38: 7.49E+13
A39: =-1.35-4.91339745962155-354893623560688 -> -354893623560694
A40: =-1.5-5-45683615550583.9 -> -4.568361555e+13
A41: =-1.45-4.91339745962155-410421098175196 -> -410421098175202
A42: -1.8 | B42: -5 | C42: 1.21E+12
A43: =-1.7-5-42425686369577 -> -4.242568637e+13
A44: -1.75 | B44: -4.91339746 | C44: 1.68E+14
A45: -1.6 | B45: -5 | C45: 9.89E+12
A46: =-1.65-4.91339745962155-58716789190874.1 -> -5.871678919e+13
A47: -1.2 | B47: -5 | C47: 4.83E+13
A48: =-1.24999999999999-4.91339745962155-289283787743688 -> -289283787743694
A49: -1.3 | B49: -4.826794919 | C49: 6.70E+14
A50: -1.7 | B50: -4.826794919 | C50: 4.11E+14
A51: -1.8 | B51: -4.826794919 | C51: 2.04E+14
A52: =-2.16466257790567-4.50017253407262-209640821347888 -> -209640821347895
A53: -2.173251338 | B53: -4.595507292 | C53: 4.36E+14
A54: -2.092786514 | B54: -4.547371831 | C54: 1.98E+14
A55: -1.988465585 | B55: -4.654223873 | C55: 8.56E+13
A56: =-1.89579282194854-4.65407665774917-86380304582028.4 -> -86380304582035
A57: -2.021319311 | B57: -4.583715282 | C57: 6.76E+14
A58: =-1.84999999999999-4.91339745962155-31741347023549.2 -> -31741347023556
A59: -1.9 | B59: -4.826794919 | C59: 1.85E+14
A60: -1.85 | B60: -4.740192379 | C60: 1.60E+14
A61: =-1.79999999999999-4.65358983848622-426137734101413 -> -426137734101419
A62: -1.75 | B62: -4.740192379 | C62: 6.03E+14
A63: =-1.7-4.65358983848622-207216814965008 -> -207216814965014
A64: -1.4 | B64: -4.826794919 | C64: 5.21E+14
A65: -1.35 | B65: -4.740192379 | C65: 7.94E+14
A66: =-2.08050333639529-4.45259075747553-347421442090679 -> -347421442090686
A67: -2.069448692 | B67: -4.354765991 | C67: 3.20E+14
A68: =-1.99244940206263-4.40430798093225-194815546911543 -> -194815546911549
A69: -2.007577261 | B69: -4.503631687 | C69: 3.07E+13
A70: -1.905120905 | B70: -4.465163338 | C70: 1.18E+14
A71: -1.944657899 | B71: -4.573602823 | C71: 5.50E+14
A72: -1.848807765 | B72: -4.565695491 | C72: 4.55E+14
A73: =-1.6-4.65358983848622-531339998029435 -> -531339998029441
A74: -1.65 | B74: -4.566987298 | C74: 2.76E+14
A75: -1.749893233 | B75: -4.566600004 | C75: 2.16E+14
A76: -1.55 | B76: -4.566987298 | C76: 1.05E+14
A77: -1.45 | B77: -4.566987298 | C77: 2.27E+13
A78: -1.5 | B78: -4.480384758 | C78: 9.87E+14
A79: -1.45 | B79: -4.393782217 | C79: 2.45E+14
A80: -1.55 | B80: -4.393782217 | C80: 1.42E+14
A81: -1.798684572 | B81: -4.479086585 | C81: 4.46E+14
A82: -1.828405477 | B82: -4.401511948 | C82: 2.55E+14
A83: =-1.74651140285213-4.39585957073627-73099469368936 -> -7.309946937e+13
A84: -1.699500931 | B84: -4.479731187 | C84: 4.23E+14
A85: -1.646687717 | B85: -4.395030629 | C85: 1.28E+14
A86: -1.6 | B86: -4.480384758 | C86: 7.82E+14
A87: =-1.59885916477525-4.30488384468713-373787564928032 -> -373787564928038
A88: =-1.69502117824625-4.30516031350544-143286548717090 -> -143286548717096
A89: -1.647156089 | B89: -4.210040173 | C89: 6.81E+14
A90: -1.572790149 | B90: -4.146705572 | C90: 5.12E+14
A91: -1.645682081 | B91: -4.101380808 | C91: 8.77E+13
A92: -1.544555207 | B92: -4.22003945 | C92: 4.49E+14
A93: =-2.32709468496496-4.50247242600295-395732085737743 -> -395732085737750
A94: =-2.41354734248248-4.45271966860324-316970390742081 -> -316970390742088
A95: -2.5 | B95: -4.402966911 | C95: 3.37E+14
A96: -2.413547342 | B96: -4.552225183 | C96: 1.17E+14
A97: -2.5 | B97: -4.502472426 | C97: 1.88E+14
A98: -2.5 | B98: -4.601977941 | C98: 4.97E+14
A99: -2.4167098 | B99: -4.749925127 | C99: 1.25E+13
A100: -2.428419452 | B100: -4.846988954 | C100: 1.65E+14
A101: -2.5 | B101: -4.701483456 | C101: 5.27E+13
A102: =-2.5-4.80098897040117-373727471879665 -> -373727471879672
A103: -2.240642027 | B103: -4.253708639 | C103: 2.42E+13
A104: =-2.32709468496496-4.20395588160471-137340469170209 -> -137340469170216
A105: -2.413547342 | B105: -4.253708639 | C105: 2.09E+14
A106: -2.5 | B106: -4.303461396 | C106: 2.83E+14
A107: =-2.41354734248248-4.15420312420501-292359308230279 -> -292359308230286
A108: =-2.5-4.20395588160471-407315013574360 -> -407315013574367
A109: =-2.00080524571066-0.702136486064074-1734911373836400 -> -1734911373836400
A110: =-2.01326730416408-0.715336696194338-1929810223642640 -> -1929810223642640
A111: =-1.99421298389021-0.720425569959623-2541903259685210 -> -2541903259685210
A112: -2.067461643 | B112: -0.6474397637 | C112: 4.98E+14
A113: -2.071482175 | B113: -0.6323933559 | C113: 3.79E+14
A114: -2.083370202 | B114: -0.6441741872 | C114: 3.85E+14
A115: -2.074508545 | B115: -0.661942712 | C115: 3.39E+14
A116: -2.054540005 | B116: -0.6585283926 | C116: 4.79E+14
A117: -2.168179909 | B117: -0.2133611849 | C117: 8.91E+14
A118: -2.16 | B118: -0.2 | C118: 8.57E+14
A119: -2.18 | B119: -0.2 | C119: 3.92E+14
A120: -2.188066617 | B120: -0.2133611755 | C120: 3.58E+14
A121: -2.148238528 | B121: -0.2133545627 | C121: 1.06E+15
A122: -2.14 | B122: -0.2 | C122: 9.96E+14
A123: -2.156411254 | B123: -0.2266883793 | C123: 1.18E+15
A124: -2.136586367 | B124: -0.2266877656 | C124: 1.15E+15
A125: -2.128351997 | B125: -0.2134036579 | C125: 1.09E+15
A126: -1 | B126: -5 | C126: 1.71E+14
A127: -0.95 | B127: -4.91339746 | C127: 7.66E+14
A128: -1.05 | B128: -4.91339746 | C128: 5.80E+14
A129: =-1.15-4.91339745962155-64639032571649.6 -> -6.463903257e+13
A130: -1.1 | B130: -4.826794919 | C130: 1.87E+14
A131: -1.1 | B131: -5 | C131: 1.38E+14
A132: -0.9 | B132: -5 | C132: 2.14E+14
A133: -0.8 | B133: -5 | C133: 2.70E+14
A134: -0.85 | B134: -4.91339746 | C134: 5.89E+14
A135: -0.6 | B135: -5 | C135: 9.24E+13
A136: =-0.549999999999999-4.91339745962155-218465733979815 -> -218465733979820
A137: -0.65 | B137: -4.91339746 | C137: 3.75E+14
A138: -0.6 | B138: -4.826794919 | C138: 4.27E+14
A139: -0.8 | B139: -4.826794919 | C139: 9.08E+12
A140: -0.7 | B140: -4.826794919 | C140: 1.15E+14
A141: =-0.749999999999999-4.74019237886467-65868231456836.3 -> -6.586823146e+13
A142: -0.75 | B142: -4.91339746 | C142: 5.72E+14
A143: -0.7 | B143: -5 | C143: 1.71E+14
A144: -0.65 | B144: -4.740192379 | C144: 1.58E+14
A145: -0.55 | B145: -4.740192379 | C145: 5.55E+14
A146: -0.6 | B146: -4.653589838 | C146: 2.90E+14
A147: 1.30E-15 | B147: -5 | C147: 7.95E+13
A148: 0.1 | B148: -5 | C148: 2.37E+13
A149: 0.05 | B149: -4.91339746 | C149: 2.06E+14
A150: =-0.0999999999999993-4.82679491924311-10969685296651.7 -> -1.09696853e+13
A151: 8.67E-16 | B151: -4.826794919 | C151: 2.77E+14
A152: =-0.0499999999999988-4.74019237886466-164676590175885 -> -164676590175890
A153: =-0.149999999999999-4.74019237886466-233228186556989 -> -233228186556994
A154: 0.05 | B154: -4.740192379 | C154: 4.69E+13
A155: -0.1 | B155: -4.653589838 | C155: 6.12E+14
A156: -0.45 | B156: -4.740192379 | C156: 6.04E+14
A157: -0.35 | B157: -4.740192379 | C157: 5.65E+14
A158: -0.4 | B158: -4.653589838 | C158: 2.81E+14
A159: -0.5 | B159: -4.653589838 | C159: 7.07E+13
A160: -0.55 | B160: -4.566987298 | C160: 3.42E+14
A161: -0.25 | B161: -4.740192379 | C161: 2.00E+14
A162: -0.3 | B162: -4.653589838 | C162: 2.35E+14
A163: -0.2 | B163: -4.653589838 | C163: 5.10E+14
A164: -0.25 | B164: -4.566987298 | C164: 1.49E+14
A165: -0.15 | B165: -4.566987298 | C165: 7.95E+14
A166: 0.2 | B166: -5 | C166: -1.02E+14
A167: 0.3 | B167: -5 | C167: -1.53E+13
A168: 0.25 | B168: -4.91339746 | C168: -5.78E+14
A169: 0.35 | B169: -4.91339746 | C169: -9.04E+13
A170: 0.4 | B170: -5 | C170: 3.20E+13
A171: 0.3 | B171: -4.826794919 | C171: 1.31E+14
A172: 0.4 | B172: -4.826794919 | C172: 1.47E+14
A173: -0.05 | B173: -4.566987298 | C173: 6.63E+14
A174: -0.1 | B174: -4.480384758 | C174: 6.44E+11
A175: 0.35 | B175: -4.740192379 | C175: 3.79E+14
A176: 0.25 | B176: -4.740192379 | C176: 3.83E+14
A177: 0.3 | B177: -4.653589838 | C177: 1.10E+14
A178: 0.4 | B178: -4.653589838 | C178: -3.63E+12
A179: 3.47E-15 | B179: -4.480384758 | C179: 4.70E+13
A180: 0.05 | B180: -4.566987298 | C180: 4.29E+14
A181: 0.15 | B181: -4.566987298 | C181: -3.73E+13
A182: 0.1 | B182: -4.480384758 | C182: 2.95E+14
A183: 0.05 | B183: -4.393782217 | C183: 2.76E+14
A184: 0.15 | B184: -4.393782217 | C184: 5.01E+14
A185: 0.45 | B185: -4.91339746 | C185: 2.58E+14
A186: 0.5 | B186: -4.826794919 | C186: -1.77E+13
A187: 0.55 | B187: -4.91339746 | C187: 2.83E+14
A188: 0.6 | B188: -4.826794919 | C188: -1.47E+14
A189: 0.5 | B189: -5 | C189: 1.54E+13
A190: 0.35 | B190: -4.566987298 | C190: -1.65E+14
A191: 0.25 | B191: -4.566987298 | C191: -7.40E+13
A192: 0.2 | B192: -4.480384758 | C192: 3.27E+14
A193: 0.3 | B193: -4.480384758 | C193: 2.29E+14
A194: 0.45 | B194: -4.740192379 | C194: -1.20E+14
A195: 0.5 | B195: -4.653589838 | C195: -3.55E+12
A196: 0.55 | B196: -4.740192379 | C196: -2.35E+14
A197: 0.65 | B197: -4.740192379 | C197: -7.36E+13
A198: 0.6 | B198: -4.653589838 | C198: 8.14E+13
A199: 0.55 | B199: -4.566987298 | C199: 4.90E+14
A200: 0.65 | B200: -4.566987298 | C200: 3.17E+14
... 4300 more rows

Sheet SI-fig5f
A1: height(nm) | B1: Re(Neff) | C1: Im(Neff)
A2: 0 | B2: 23.041 | C2: 0.245
A3: 10 | B3: 23.047 | C3: 0.246
A4: 20 | B4: 23.073 | C4: 0.247
A5: 30 | B5: 23.138 | C5: 0.248
A6: 40 | B6: 23.249 | C6: 0.252
A7: 50 | B7: 23.401 | C7: 0.257
A8: 60 | B8: 23.581 | C8: 0.264
A9: 70 | B9: 23.784 | C9: 0.274
A10: 80 | B10: 24.008 | C10: 0.286
A11: 90 | B11: 24.26 | C11: 0.301
A12: 100 | B12: 24.551 | C12: 0.319
A13: 110 | B13: 24.892 | C13: 0.34
A14: 120 | B14: 25.296 | C14: 0.369

Sheet SI-fig.7
A1: Fig.7a | I1: Fig.7b
B2: suspended hBN | E2: hBN/calcite | J2: hBN/calcite | M2: suspended hBN
A3: h(nm) | B3: Re(Neff) | C3: Im(Neff) | E3: Re(Neff) | F3: Im(Neff) | I3: W(nm) | J3: Re(Neff) | K3: Im(Neff) | M3: Re(Neff) | N3: Im(Neff)
A4: 0 | B4: 23.041 | C4: 0.245 | D4: 0 | E4: 17.73 | F4: 0.665 | I4: 600 | J4: 23.685 | K4: 0.722 | L4: 600 | M4: 23.92 | N4: 0.27
A5: 10 | B5: 23.047 | C5: 0.246 | D5: 10 | E5: 29.143 | F5: 1.174 | I5: 575 | J5: 23.74 | K5: 0.674 | L5: 575 | M5: 23.969 | N5: 0.273
A6: 20 | B6: 23.073 | C6: 0.247 | D6: 20 | E6: 24.098 | F6: 1.425 | I6: 550 | J6: 23.808 | K6: 0.6484 | L6: 550 | M6: 24.023 | N6: 0.276
A7: 30 | B7: 23.138 | C7: 0.248 | D7: 30 | E7: 22.882 | F7: 1.259 | I7: 525 | J7: 23.893 | K7: 0.643 | L7: 525 | M7: 24.082 | N7: 0.279
A8: 40 | B8: 23.249 | C8: 0.252 | D8: 40 | E8: 22.401 | F8: 1.296 | I8: 500 | J8: 23.985 | K8: 0.652 | L8: 500 | M8: 24.148 | N8: 0.284
A9: 50 | B9: 23.401 | C9: 0.257 | D9: 50 | E9: 23.532 | F9: 1.804 | I9: 475 | J9: 24.084 | K9: 0.682 | L9: 475 | M9: 24.224 | N9: 0.291
A10: 60 | B10: 23.581 | C10: 0.264 | D10: 60 | E10: 23.433 | F10: 1.573 | I10: 450 | J10: 24.188 | K10: 0.729 | L10: 450 | M10: 24.313 | N10: 0.299
A11: 70 | B11: 23.784 | C11: 0.274 | D11: 70 | E11: 23.62 | F11: 1.334 | I11: 425 | J11: 24.297 | K11: 0.791 | L11: 425 | M11: 24.42 | N11: 0.309
A12: 80 | B12: 24.008 | C12: 0.286 | D12: 80 | E12: 23.919 | F12: 1.12 | I12: 400 | J12: 24.395 | K12: 0.868 | L12: 400 | M12: 24.55 | N12: 0.318
A13: 90 | B13: 24.26 | C13: 0.301 | D13: 90 | E13: 24.124 | F13: 0.941 | I13: 375 | J13: 24.472 | K13: 0.931 | L13: 375 | M13: 24.711 | N13: 0.329
A14: 100 | B14: 24.551 | C14: 0.319 | D14: 100 | E14: 24.393 | F14: 0.867 | I14: 350 | J14: 24.583 | K14: 0.958 | L14: 350 | M14: 24.912 | N14: 0.34
A15: 110 | B15: 24.892 | C15: 0.34 | D15: 110 | E15: 24.782 | F15: 0.822 | I15: 325 | J15: 24.765 | K15: 0.989 | L15: 325 | M15: 25.176 | N15: 0.368
A16: 120 | B16: 25.296 | C16: 0.369 | D16: 120 | E16: 25.193 | F16: 0.745 | I16: 300 | J16: 24.993 | K16: 1.045 | L16: 300 | M16: 25.549 | N16: 0.414

Sheet SI-fig.8
B1: Fig. 8d | C1: Fig. 8b
A2: tickniss(nm) | B2: η | C2: Mg | D2: M1 | E2: M2
A3: 60 | B3: 22.2 | C3: 24.4 | D3: 17.58 | E3: 38.45
A4: 55 | B4: 45.6 | C4: 26.7 | D4: 19.16 | E4: 41.94
A5: 50 | B5: 64.5 | C5: 29.4 | D5: 21.1 | E5: 46.1
A6: 45 | B6: 78.4 | C6: 32.8 | D6: 23.38 | E6: 51.25
A7: 40 | B7: 80.9 | C7: 37.2 | D7: 26.29 | E7: 57.65
A8: 37.5 | B8: 88.6 | C8: 39.8 | D8: 28.3 | E8: 61.5
A9: 35 | B9: 92.8 | C9: 42.7 | D9: 30.05 | E9: 65.87
A10: 30 | B10: 93.1 | C10: 50.1 | D10: 35.05 | E10: 76.86

Sheet SI-fig9a
A1: x | B1: y | C1: Real(Ez)
A2: =-1.5-5-6481640351808.23 -> -6.481640352e+12
A3: =-1.6-4.82679491924311-707309080214.184 -> -7.073090802e+11
A4: =-2.37311603446368-4.85870531943451-2391174333548.84 -> -2.391174334e+12
A5: =-2.5-4.80396320858784-8977448773329 -> -8.977448773e+12
A6: =-2.5-5-4627303835607.63 -> -4.627303836e+12
A7: =-2.3-5-7824217898854.82 -> -7.824217899e+12
A8: =-1.79654438562543-4.82685489170086-1609339593879.61 -> -1.609339594e+12
A9: =-1.9-5-5738200910728.46 -> -5.738200911e+12
A10: =-2.18924881595778-4.81858852563663-2097822527692.74 -> -2.097822528e+12
A11: =-1.98601524185922-4.82393126000735-3591146882897.12 -> -3.591146883e+12
A12: =-2.09999999999999-5-5293787559202.85 -> -5.293787559e+12
A13: =-2.03578054401225-4.6849311056893-8699397139467.58 -> -8.699397139e+12
A14: =-1.885947835437-4.67564983611452-7037746209760.35 -> -7.03774621e+12
A15: -2.429786646 | B15: -0.1554589517 | C15: 1.39E+15
A16: -2.420269618 | B16: -0.14 | C16: 3.65E+14
A17: -2.440270714 | B17: -0.14 | C17: 3.55E+14
A18: -2.450770573 | B18: -0.1560711852 | C18: 4.47E+14
A19: -2.46027181 | B19: -0.14 | C19: 2.70E+14
A20: =-2.14025427388697-0.14-219395339490393 -> -219395339490395
A21: =-2.13028690442871-0.1596080199525-37932903191.1712 -> -3.793290319e+10
A22: -2.120253178 | B22: -0.14 | C22: 1.05E+13
A23: =-2.1602553698951-0.14-597006995252497 -> -597006995252499
A24: =-2.15056880235832-0.159193497745947-488801378489815 -> -488801378489817
A25: =-2.18025646590324-0.14-1206254355467800 -> -1206254355467800
A26: =-2.16957491234721-0.158112322400364-969367313227505 -> -969367313227507
A27: =-2.20025756191137-0.14-1673178963482700 -> -1673178963482700
A28: =-2.19067324557896-0.157522526923505-1361939145044040 -> -1361939145044040
A29: =-2.17964902932236-0.172041751944173-781797901135656 -> -781797901135658
A30: =-2.16211479119919-0.177760926032556-383735438038093 -> -383735438038095
A31: =-2.1985519675784-0.178286069285826-986244811936464 -> -986244811936466
A32: =-2.17954888824455-0.19401540689758-1085418124860380 -> -1085418124860380
A33: =-2.02024769783817-0.14-374324938709809 -> -374324938709811
A34: =-2.0402487938463-0.14-199897844809447 -> -199897844809449
A35: =-2.03007056577826-0.159802629213481-728091395800844 -> -728091395800846
A36: =-2.06024988985443-0.14-110226501337906 -> -110226501337908
A37: =-2.05048329650352-0.1589497219074-274554551965820 -> -274554551965822
A38: =-2.04071376526533-0.179136951205971-1315568160450090 -> -1315568160450090
A39: -2.080250986 | B39: -0.14 | C39: 9.41E+13
A40: -2.069752785 | B40: -0.1578184141 | C40: 9.45E+13
A41: -2.351136783 | B41: -0.1593033713 | C41: 1.73E+15
A42: -2.330101919 | B42: -0.1597910767 | C42: 6.98E+14
A43: -2.340265234 | B43: -0.14 | C43: 2.45E+15
A44: -2.320264138 | B44: -0.14 | C44: 1.79E+15
A45: -2.400268522 | B45: -0.14 | C45: 9.99E+14
A46: -2.409462139 | B46: -0.1575599421 | C46: 2.59E+15
A47: -2.421781537 | B47: -0.1711009757 | C47: 3.26E+15
A48: -2.431430799 | B48: -0.1836951008 | C48: 2.09E+15
A49: -2.418513668 | B49: -0.1878040339 | C49: 3.81E+14
A50: -2.401052598 | B50: -0.1782952667 | C50: 1.60E+15
A51: -2.36026633 | B51: -0.14 | C51: 2.21E+15
A52: -2.390885486 | B52: -0.1576693743 | C52: 2.87E+15
A53: -2.380267426 | B53: -0.14 | C53: 1.83E+15
A54: -2.370056324 | B54: -0.1579999317 | C54: 2.48E+15
A55: -2.341211561 | B55: -0.1787201123 | C55: 2.66E+13
A56: =-2.2202586579195-0.14-1811921340446190 -> -1811921340446190
A57: =-2.21005466220449-0.158913736233586-1666648979293410 -> -1666648979293410
A58: =-2.21924331172746-0.179864002440888-1092804640874060 -> -1092804640874060
A59: =-2.24025975392764-0.14-1739860694838480 -> -1739860694838480
A60: =-2.2304342468831-0.159658494598317-1765272139489840 -> -1765272139489840
A61: =-2.24122488745015-0.1782664010911-940070682220723 -> -940070682220725
A62: =-2.22877308843066-0.198142824810013-1751994943927500 -> -1751994943927500
A63: -2.355196755 | B63: -0.1978015588 | C63: 8.40E+14
A64: -2.329134938 | B64: -0.1988137047 | C64: 6.87E+14
A65: -2.319336015 | B65: -0.1798821577 | C65: 2.01E+14
A66: =-2.30502414998553-0.198061998737188-54033443748528.2 -> -5.403344375e+13
A67: =-2.35856222771387-4.69416212622393-15527528907245.5 -> -1.552752891e+13
A68: =-2.5-4.60792641717568-11529694805528.6 -> -1.152969481e+13
A69: =-2.18200517700595-4.59729014230397-11546532380226.3 -> -1.154653238e+13
A70: =-2.34001653025378-4.50484334004822-16935641026133.8 -> -1.693564103e+13
A71: =-2.5-4.41188962576353-23411066011271.2 -> -2.341106601e+13
A72: =-2.5-4.21585283435137-27033342363441.5 -> -2.703334236e+13
A73: =-2.32790402665783-4.11768238710694-32266172204413.9 -> -3.22661722e+13
A74: =-2.5-4.01951193986251-31719120548248.6 -> -3.171912055e+13
A75: =-1.68301363789536-4.66001949316853-5853058247650.56 -> -5.853058248e+12
A76: =-1.49658303740274-4.6589854993086-6625297782611.13 -> -6.625297783e+12
A77: =-1.59180247310935-4.47967498356645-9622033078717.63 -> -9.622033079e+12
A78: -1.4 | B78: -4.826794919 | C78: 1.86E+12
A79: =-1.3-5-6235642697647.13 -> -6.235642698e+12
A80: -1.2 | B80: -4.826794919 | C80: 4.19E+12
A81: =-1.1-5-6797106203804.62 -> -6.797106204e+12
A82: -1 | B82: -4.826794919 | C82: 5.18E+12
A83: =-0.9-5-6627376433399.61 -> -6.627376433e+12
A84: =-2.17259430633963-4.39805623446261-20170371193639.8 -> -2.017037119e+13
A85: =-2.32799620300426-4.31387123005745-24595414274118 -> -2.459541427e+13
A86: =-2.16744455597763-4.20408743444745-26846802604402.2 -> -2.68468026e+13
A87: =-2.01878878526678-4.29418553458372-23267531677907 -> -2.326753168e+13
A88: =-1.98611725744788-4.50445943156336-12094552761043.8 -> -1.209455276e+13
A89: =-1.77834759088357-4.48236234363407-10678876978406.8 -> -1.067887698e+13
A90: =-1.86102429656419-4.35613792492729-20692746282195 -> -2.069274628e+13
A91: =-0.899999999999999-4.65358983848622-1992523197305.93 -> -1.992523197e+12
A92: =-0.699999999999999-4.65358983848622-6428858742739.35 -> -6.428858743e+12
A93: =-0.799999999999999-4.48038475772933-3577347241734.33 -> -3.577347242e+12
A94: =-1.3-4.65358983848622-7503529961973.53 -> -7.503529962e+12
A95: =-1-4.48038475772933-5029938737450.18 -> -5.029938737e+12
A96: =-2.16680897827503-4.01012546329993-30859541314068.2 -> -3.085954131e+13
A97: =-2.33612949583915-3.91992799378727-31950611160964.7 -> -31950611160971
A98: =-2.17420300137333-3.8185404692607-28032495931274.3 -> -2.803249593e+13
A99: =-2.02113275873311-3.71257963380229-24981192434826.2 -> -2.498119243e+13
A100: =-2.18562526849346-3.62872218174121-19691160525780.9 -> -1.969116053e+13
A101: =-2.00024660183003-0.14-637350841369448 -> -637350841369450
A102: =-1.99104706463635-0.157727827120017-826948050014049 -> -826948050014051
A103: =-1.9802455058219-0.14-921282358437836 -> -921282358437838
A104: =-2.01005510406694-0.159674911002087-906124991887421 -> -906124991887423
A105: =-1.99773749055823-0.178890572785614-1090006590367420 -> -1090006590367420
A106: =-1.97964276159746-0.171990754825743-714265437697920 -> -714265437697922
A107: =-1.7402323537243-0.14-757695801551857 -> -757695801551859
A108: =-1.76023344973243-0.14-447167755879898 -> -447167755879900
A109: =-1.74852503038796-0.158312827048028-1152393274906550 -> -1152393274906550
A110: =-1.96024440981377-0.14-1158946839074230 -> -1158946839074230
A111: =-1.95054100211722-0.158738009870321-559307327764988 -> -559307327764990
A112: =-1.94024331380563-0.14-1229954277429400 -> -1229954277429400
A113: =-1.96167862951338-0.177119071459261-467590704793115 -> -467590704793117
A114: =-1.94038093887977-0.178732522877358-292176774611175 -> -292176774611177
A115: =-1.95280059807688-0.198119441612555-414076219250791 -> -414076219250793
A116: =-1.97009506512127-0.157682374509247-723295629073026 -> -723295629073028
A117: -1.939036916 | B117: -0.2623458765 | C117: 4.05E+14
A118: -1.951552708 | B118: -0.24 | C118: 7.05E+14
A119: -1.964137311 | B119: -0.262450413 | C119: 8.96E+14
A120: -1.951349786 | B120: -0.2857740171 | C120: 3.18E+14
A121: =-1.92602602764015-0.284770483949164-134910185998278 -> -134910185998280
A122: -1.820236738 | B122: -0.14 | C122: 9.58E+13
A123: -1.840237834 | B123: -0.14 | C123: 6.39E+12
A124: =-1.82931950701548-0.159796353619516-388641199796577 -> -388641199796579
A125: =-1.80828861247225-0.1595926510817-474298711624469 -> -474298711624471
A126: =-1.81705730443223-0.180127515829833-568389602282304 -> -568389602282306
A127: =-1.8002356417487-0.14-7021988779035.39 -> -7.021988779e+12
A128: =-1.78023454574056-0.14-272184796128055 -> -272184796128057
A129: =-1.78788490337271-0.15768136889026-581471623053276 -> -581471623053278
A130: =-1.79534316296822-0.179553365752869-691057455863267 -> -691057455863269
A131: =-1.76802360235998-0.155716378123085-749628790788927 -> -749628790788929
A132: =-1.75947550608754-0.169934983795833-1014709024421440 -> -1014709024421440
A133: =-1.70023016170803-0.14-1108616210507750 -> -1108616210507750
A134: =-1.69047166533149-0.158916083369505-1479445817997480 -> -1479445817997480
A135: =-1.6802290656999-0.14-1111454713040910 -> -1111454713040910
A136: =-1.72023125771616-0.14-980024222447932 -> -980024222447934
A137: =-1.73019978796203-0.159981437398078-1404254699097470 -> -1404254699097470
A138: =-1.71000829513591-0.159123840644987-1523300989122840 -> -1523300989122840
A139: =-1.70066842057805-0.177512717623957-1255101082409380 -> -1255101082409380
A140: =-1.74316569405898-0.178479642224943-1143430905446220 -> -1143430905446220
A141: =-1.72083880936055-0.177290038062171-1308407159934330 -> -1308407159934330
A142: =-1.775489763132-0.174087677404679-888245115517579 -> -888245115517581
A143: =-1.77609394138199-0.196647469445425-598308332122893 -> -598308332122895
A144: =-1.76113450622844-0.183318706276325-968850217745459 -> -968850217745461
A145: =-1.75309595718312-0.198291002630242-772204607476360 -> -772204607476362
A146: =-1.80013951266724-0.24-875635206784402 -> -875635206784404
A147: =-1.81266838447017-0.26086533530067-269323942059802 -> -269323942059804
A148: -1.78813707 | B148: -0.2592146375 | C148: 4.30E+13
A149: =-2.31697166870904-0.219155849205083-690526343669561 -> -690526343669563
A150: =-2.25465908744384-0.285012818243276-1155254306987550 -> -1155254306987550
A151: =-2.22876723119504-0.285768622900446-1017471679257100 -> -1017471679257100
A152: =-2.24181092450685-0.262396829732664-1077588081274180 -> -1077588081274180
A153: =-2.24130377025489-0.307195185918536-574967444358860 -> -574967444358862
A154: =-2.27948914824215-0.24-1737335201500890 -> -1737335201500890
A155: =-2.25425488005455-0.24-901558356516904 -> -901558356516906
A156: =-2.26782399048664-0.217779770532428-2114096989917250 -> -2114096989917250
A157: =-2.26687201414835-0.262173446664375-770331270088691 -> -770331270088693
A158: =-2.48548898501121-0.152000013698955-917742003158326 -> -917742003158329
A159: -2.480271083 | B159: -0.14 | C159: 5.22E+14
A160: -2.5 | B160: -0.14 | C160: 1.27E+15
A161: =-2.5-0.158970964996969-559155383135659 -> -559155383135662
A162: -2.481323156 | B162: -0.1700439523 | C162: 3.26E+15
A163: -2.44034707 | B163: -0.1719801777 | C163: 3.72E+15
A164: -2.449141647 | B164: -0.1894885566 | C164: 7.55E+14
A165: -2.460083953 | B165: -0.1711799207 | C165: 3.60E+15
A166: =-2.4699311836172-0.153583092029131-644761510039299 -> -644761510039302
A167: -2.468218351 | B167: -0.1849343036 | C167: 3.20E+15
A168: =-2.46652247130542-0.199591119007286-1422436114573910 -> -1422436114573910
A169: -2.482435286 | B169: -0.1907955034 | C169: 1.69E+15
A170: -2.5 | B170: -0.1778914376 | C170: 4.88E+15
A171: =-2.5-0.197666347187659-519579169476431 -> -519579169476434
A172: =-2.48287182068125-0.20834626304099-1980653746853260 -> -1980653746853260
A173: -2.485660464 | B173: -0.2251619008 | C173: 2.81E+15
A174: -2.5 | B174: -0.24 | C174: 1.88E+15
A175: -2.477424393 | B175: -0.24 | C175: 1.50E+15
A176: =-2.48535318760054-0.254593426114961-1189328363184210 -> -1189328363184210
A177: =-2.5-0.262684555417698-961530271306874 -> -961530271306877
A178: -2.5 | B178: -0.2183346749 | C178: 1.08E+15
A179: =-2.06197021780714-0.177703744340742-849885028013241 -> -849885028013243
A180: -2.100252082 | B180: -0.14 | C180: 2.35E+14
A181: -2.109807746 | B181: -0.1585452794 | C181: 2.23E+14
A182: =-2.10514670019689-0.198109692430908-1225648031364270 -> -1225648031364270
A183: =-2.1290756664996-0.198518555895205-1048290738741620 -> -1048290738741620
A184: =-2.11632997686272-0.219408817641031-1040301505104910 -> -1040301505104910
A185: =-2.15445029372597-0.198173131109999-1094364151007860 -> -1094364151007860
A186: =-2.1408367514261-0.178709472854695-120598189989276 -> -120598189989278
A187: =-2.0988498379815-0.178665924583546-235357038239236 -> -235357038239238
A188: =-2.07911534216189-0.194580062480335-1449416245889140 -> -1449416245889140
A189: -2.090788541 | B189: -0.1576284017 | C189: 2.68E+14
A190: =-2.07963550798582-0.17231394489745-230920427724900 -> -230920427724902
A191: =-2.11925017728317-0.179754762242051-100888321761281 -> -100888321761283
A192: =-1.91846960949793-0.179219898084191-346518246526496 -> -346518246526498
A193: =-1.92732786443975-0.19807353610487-429884557811974 -> -429884557811976
A194: -1.940115308 | B194: -0.2189969988 | C194: 6.44E+14
A195: =-2.01948269672722-0.179867883103974-1424390576375160 -> -1424390576375160
A196: =-2.00418970691013-0.198426912237216-509942409001444 -> -509942409001446
A197: =-2.26026084993577-0.14-1064207559079390 -> -1064207559079390
A198: =-2.25090245106907-0.159891590698594-1480897398046630 -> -1480897398046630
A199: =-2.2802619459439-0.14-229226552875428 -> -229226552875430
A200: =-2.26992848977797-0.158507215171786-1111387061070210 -> -1111387061070210
... 4300 more rows

Sheet SI-fig11g
A2: Re(Neff) | B2: wavenumber (cm-1) | C2: wavenumber (cm-1) | D2: wavenumber (cm-1) | E2: wavenumber (cm-1)
A3: 37.086 | B3: 1470
A4: 32.146 | B4: 1460
A5: 27.172 | B5: 1450
A6: 21.049 | B6: 1440
A7: 16.36 | B7: 1430
A8: 27.578 | C8: 1470
A9: 24.481 | C9: 1460
A10: 20.987 | C10: 1450
A11: 17.165 | C11: 1440
A12: 13.444 | C12: 1430
A13: 26.877 | D13: 1470
A14: 23.491 | D14: 1460
A15: 20.263 | D15: 1450
A16: 16.879 | D16: 1440
A17: 13.304 | D17: 1430
A18: 35.176 | E18: 1470
A19: 30.122 | E19: 1460
A20: 25.035 | E20: 1450
A21: 20.695 | E21: 1440
A22: 16.086 | E22: 1430
